Cogmind - Beta 15 @@@ ROGUE MODE // 2025.08.14 @ 12:07:12 Player: lvl5hm Result: Destroyed by S-43 Plague with Heavy Machine Gun Performance ------------- Evolutions (9) 4500 Regions Visited (32) 6400 Robots Destroyed (551) 2755 Value Destroyed (24497) 24497 Prototype IDs (48) 960 Alien Tech Used (7) 1400 Bonus (17454) 17454 TOTAL SCORE: 57966 Bonus ------- Triggered High Security 500 High Alert Combat Kills 3034 Follower Combat Kills 1792 Entered Garrisons 200 Network Hubs Disabled 400 Met Imprinter 300 Met Zhirov 300 Met Warlord at Base 500 MAIN.C Attacked Warlord 500 Warlord Defense Kills 1622 Built Enhanced Grunts 300 A7 Reached Mainframe 300 Met R17 at Cetus 500 Used Core Reset Matrix 3000 Met R17 at Research 2000 Scanned by Researcher 500 Met Sigix 2000 Friendly Fire -294 Cogmind --------- Core Integrity 0/1600 Matter 287/300 Energy 60/100 System Corruption 16% Temperature Cool (0) Movement Core (300) Ox5 Location -1/Access Parts ------- > --- POWER (3) -------- (None) > --- PROPULSION (5) --- (None) > --- UTILITY (13) ----- (None) > --- WEAPON (4) ------- Heavy Disruptor Cannon > --- INVENTORY (5) ---- Sigix Containment Pod Peak State ------------ > --- POWER ------------ Particle Reactor Light Quantum Reactor > --- PROPULSION ------- Shield Leg Shield Leg Shield Leg Biometal Leg Biometal Leg > --- UTILITY ---------- Advanced Heat Sink Advanced Heat Sink Improved Cooling System Advanced Cooling System High-capacity Storage Unit Enhanced Optical Array Advanced Signal Interpreter Advanced Targeting Computer Experimental Core Analyzer Improved Transmission Jammer Advanced Reaction Control System Graphene Brace Advanced Component Analysis Suite > --- WEAPON ----------- Enhanced Nova Cannon Enhanced Nova Cannon Enhanced Nova Cannon Enhanced Hardcell Cannon > --- INVENTORY -------- Light Antimatter Reactor Light Antimatter Reactor Myomer Leg Biometal Leg Biometal Leg Biometal Leg Advanced Heat Sink Huge Storage Unit Advanced Energy Well Matter Compressor Structural Scanner Advanced Sensor Array Vortex Rail Heavy Disruptor Cannon Compact HERF Cannon Heavy Battle Rifle Railgun Sigix Containment Pod [Rating: 175] Favorites ----------- Power Reinforced Fission Core Engine Cooled Deuterium Engine Power Core Reinforced Fission Core Reactor Hybrid Antimatter Reactor Propulsion Centrium Heavy Treads Treads Centrium Heavy Treads Leg Shield Leg Wheel Compact Wheel Utility High-capacity Storage Unit Device Advanced Cooling System Storage High-capacity Storage Unit Processor Advanced Targeting Computer Hackware Improved Hacking Suite Protection Centrium Medium Armor Plating Artifact Phase Redirector Weapon Enhanced Autogun Energy Gun Advanced Variable Charge Gun Energy Cannon Matter Neutralizer Ballistic Gun Enhanced Autogun Ballistic Cannon Compact Mass Driver Launcher Long-range Missile Launcher Special Weapon Plasma Cutter Impact Weapon Power Maul Build | -11 -10 -9 -9 -8 -8 -8 -7 -7 -7 -7 -7 -7 -6 -6 -6 -6 -6 -6 -5 -5 -5 -5 -4 -4 -4 -4 -4 -3 -3 -3 -2 -1 ------- Run | Yrd Mat Mat Sto Mat Gar Mat Fac Was Fac Low Low Zio Pro Fac Ext Cet Arc Hub Fac Upp Upp Zhi Pro Fac Upp Upp War Pro Res Qua Res Acc Slots Evolved 18 | . . 2 . 2 . . 2 . . . . . . 2 . . . . 2 . . . . 2 . . . . 2 . 2 2 Power 2 | . . . . . . . . . . . . . . . . . . . 1 . . . . . . . . . 1 . . . Propulsion 3 | . . . . 1 . . 1 . . . . . . . . . . . . . . . . . . . . . . . . 1 Utility 11 | . . 1 . . . . 1 . . . . . . 2 . . . . 1 . . . . 2 . . . . 1 . 2 1 Weapon 2 | . . 1 . 1 . . . . . . . . . . . . . . . . . . . . . . . . . . . . Parts Attached 341 | 7 5 28 23 24 1 13 3 2 13 . 1 1 . 9 16 20 6 1 22 . 1 5 3 26 . 2 18 4 12 26 13 36 Power 45 | 1 1 4 3 3 . 1 1 1 . . . . . . . 1 . . 4 . . 1 2 4 . . 3 1 4 5 1 4 Engine 15 | 1 1 4 3 3 . 1 1 . . . . . . . . . . . 1 . . . . . . . . . . . . . Core 7 | . . . . . . . . 1 . . . . . . . . . . 2 . . . 2 1 . . 1 . . . . . Reactor 23 | . . . . . . . . . . . . . . . . 1 . . 1 . . 1 . 3 . . 2 1 4 5 1 4 Propulsion 70 | 2 2 10 5 7 . 3 . 1 4 . . . . . 5 3 2 . 1 . . 1 . 1 . . 3 . 2 4 2 12 Treads 56 | 2 . 10 5 7 . 3 . 1 4 . . . . . 5 3 2 . . . . 1 . 1 . . 3 . 2 4 2 1 Leg 12 | . . . . . . . . . . . . . . . . . . . 1 . . . . . . . . . . . . 11 Wheel 2 | . 2 . . . . . . . . . . . . . . . . . . . . . . . . . . . . . . . Hover . | . . . . . . . . . . . . . . . . . . . . . . . . . . . . . . . . . Flight . | . . . . . . . . . . . . . . . . . . . . . . . . . . . . . . . . . Utility 113 | 2 . 5 1 5 . 4 1 . 5 . . . . 4 9 9 2 1 12 . . 3 1 11 . 1 6 2 3 9 7 10 Device 56 | 1 . 1 . 2 . 1 1 . 2 . . . . 2 3 2 1 1 8 . . 1 1 7 . 1 4 . 1 5 3 8 Storage 7 | 1 . 2 . . . . . . . . . . . . 1 . . . . . . 1 . 1 . . . . . . 1 . Processor 22 | . . 2 1 1 . 2 . . 1 . . . . 1 1 . . . 2 . . . . 1 . . . 2 2 2 2 2 Hackware 4 | . . . . . . . . . . . . . . . . . 1 . 2 . . . . 1 . . . . . . . . Protection 22 | . . . . 2 . 1 . . 2 . . . . 1 4 7 . . . . . 1 . 1 . . 2 . . . 1 . Artifact 2 | . . . . . . . . . . . . . . . . . . . . . . . . . . . . . . 2 . . Weapon 113 | 2 2 9 14 9 1 5 1 . 4 . 1 1 . 5 2 7 2 . 5 . 1 . . 10 . 1 6 1 3 8 3 10 Energy Gun 22 | . 1 1 1 1 . . . . . . . 1 . . . 1 . . 2 . . . . 3 . 1 4 . 2 3 . 1 Energy Cannon 17 | . . . 4 3 . . . . . . . . . 1 . . . . . . . . . 3 . . . . . 1 . 5 Ballistic Gun 61 | 2 1 6 9 5 1 5 1 . 2 . . . . 4 2 6 2 . 2 . 1 . . 4 . . . 1 . 3 2 2 Ballistic Cannon 7 | . . 1 . . . . . . . . . . . . . . . . . . . . . . . . 1 . 1 1 1 2 Launcher 4 | . . . . . . . . . 1 . 1 . . . . . . . 1 . . . . . . . 1 . . . . . Special Weapon 1 | . . 1 . . . . . . . . . . . . . . . . . . . . . . . . . . . . . . Impact Weapon 1 | . . . . . . . . . 1 . . . . . . . . . . . . . . . . . . . . . . . Slashing Weapon . | . . . . . . . . . . . . . . . . . . . . . . . . . . . . . . . . . Piercing Weapon . | . . . . . . . . . . . . . . . . . . . . . . . . . . . . . . . . . Special Melee Weapon . | . . . . . . . . . . . . . . . . . . . . . . . . . . . . . . . . . Unidentified Prototypes 35 | . . 2 4 2 . 1 . . 1 . . 1 . . 1 5 . . . . . 5 . 1 . . 3 1 2 5 1 . Corrupted Parts 2 | . . . . . . . . . . . . . . . . . 2 . . . . . . . . . . . . . . . System Corruption 7 | . . . . . . . . . . . . . . . . . 7 . . . . . . . . . . . . . . . Parts Lost 66 | . 2 1 . . . 1 . . . 1 . . . . 2 . . 1 4 . . . 1 4 . . 4 . . 11 4 30 Power 9 | . . 1 . . . 1 . . . . . . . . . . . . . . . . . 1 . . . . . 3 . 3 Propulsion 13 | . 1 . . . . . . . . . . . . . . . . . . . . . . 1 . . . . . 1 1 9 Utility 25 | . . . . . . . . . . 1 . . . . 1 . . 1 1 . . . . . . . 4 . . 3 1 13 Weapon 19 | . 1 . . . . . . . . . . . . . 1 . . . 3 . . . 1 2 . . . . . 4 2 5 Highest Loss Streak 20 | . 1 1 . . . 1 . . . 1 . . . . 1 . . 1 2 . . . 1 2 . . 3 . . 4 3 20 To Critical Strikes 2 | . . . . . . . . . . . . . . . . . . . . . . . 1 . . . . . . 1 . . Average Backups 17 | . 4 14 19 19 19 18 17 18 18 19 18 18 19 19 19 18 16 17 16 16 17 17 17 17 18 17 17 17 16 16 15 15 Power 1 | . . 1 1 1 1 1 1 1 1 1 1 1 1 1 1 1 1 1 1 1 1 1 1 1 2 2 1 1 . 2 2 2 Propulsion 2 | . . 3 4 3 4 3 2 2 2 2 2 2 2 2 2 2 2 3 2 3 3 2 2 1 2 2 2 3 3 2 1 2 Utility 6 | . 1 3 4 5 6 7 6 7 7 8 7 7 8 7 7 7 7 8 7 8 8 8 9 9 9 7 6 6 4 6 7 5 Weapon 6 | . 2 7 9 8 8 7 7 7 7 8 8 7 8 8 8 7 5 5 4 4 5 4 3 4 4 4 6 6 8 5 3 5 Tool/Special . | . . . . . . . . . . . . . . . . . . . . . . . . . . . . . . . . . Unused Backups 65 | 1 1 9 7 5 . 2 . 2 8 . . 1 . 1 . 3 1 2 3 . . 1 1 2 . . . 2 4 2 . 7 Power 6 | 1 . 1 1 . . . . 1 1 . . . . . . 1 . . . . . . . . . . . . . . . . Propulsion 7 | . . 1 . 1 . . . . . . . . . . . 2 . . . . . . . . . . . . 2 . . 1 Utility 14 | . 1 . 1 3 . . . . 2 . . 1 . 1 . . . 1 1 . . . . . . . . 1 . . . 2 Weapon 38 | . . 7 5 1 . 2 . 1 5 . . . . . . . 1 1 2 . . 1 1 2 . . . 1 2 2 . 4 Tool/Special . | . . . . . . . . . . . . . . . . . . . . . . . . . . . . . . . . . Average Slot Usage (%) 90 | . 98 97 99 98 100 99 99 95 91 91 92 84 92 92 91 88 85 85 87 88 88 65 86 88 89 88 89 88 81 86 83 91 Engine 2 | . 14 10 11 8 9 8 7 3 . . . . . . . . . . . . . . . . . . . . . . . . Core 2 | . . . . . . . . 3 7 7 7 7 7 6 6 3 . . 3 5 5 5 5 . 5 5 3 3 . . . . Reactor 4 | . . . . . . . . . . . . . . . . 2 6 6 6 5 5 5 5 9 5 5 6 6 13 13 8 8 Treads 16 | . 17 21 21 26 27 27 30 26 22 23 23 23 23 20 19 16 13 13 10 11 11 11 11 9 10 10 11 15 10 10 11 3 Device 15 | . 14 10 . 4 18 8 7 15 13 14 15 15 15 21 21 12 17 19 11 12 17 16 17 20 15 15 18 18 19 16 17 28 Storage 6 | . 14 11 11 9 9 9 7 7 7 7 7 7 7 6 6 6 6 6 5 5 5 5 5 5 5 5 5 5 4 6 7 3 Processor 9 | . . 10 22 7 . 3 7 7 7 6 . . . 4 3 6 6 6 11 15 11 11 7 8 10 10 10 11 14 19 17 18 Hackware 2 | . . . . . . . . . . . . . . . . . . 6 8 5 5 5 5 9 10 10 5 . . . . . Protection 3 | . . . . 4 . 6 6 . 1 . 7 7 7 6 6 11 7 . 1 . . . 2 1 5 5 6 5 4 1 . . Energy Gun 3 | . 2 2 . . . . . . . . . 1 . . . . 4 5 4 11 11 . 11 3 8 9 9 19 9 3 7 . Energy Cannon 1 | . . . 4 2 1 . . . . . . . . 1 . . . . . . . . . 7 1 . 1 . . . . 6 Ballistic Gun 18 | . 25 29 27 33 34 35 30 30 29 30 29 20 30 23 24 25 21 20 17 11 10 1 8 8 10 10 5 1 . 7 1 3 Peak Build Rating 175 | 9 10 21 24 40 38 39 47 56 61 60 60 66 58 71 77 124 127 113 130 120 122 122 128 146 141 141 140 133 146 154 169 175 Average Rating 90 | 5 9 17 22 33 37 33 42 50 57 57 57 59 58 68 71 94 117 112 121 116 120 95 123 135 138 138 135 124 140 142 142 160 On Entrance 83 | . 9 10 20 24 37 38 35 44 56 60 53 60 58 58 71 74 124 112 110 120 117 122 122 128 137 141 136 131 124 142 144 133 Naked Turns 18 | . . . . . . . . . . . . . . . . . . . . . . . . . . . . . . . . 18 Heaviest Build 164 | 15 15 58 60 88 71 71 69 76 85 82 87 92 84 97 103 108 109 91 115 105 116 116 105 125 124 119 131 118 141 155 164 148 Greatest Support 172 | 40 40 40 40 66 65 68 85 112 118 118 118 118 118 118 120 160 160 160 160 160 160 160 160 160 160 160 160 134 150 145 145 172 Greatest Overweight (x) 5 | 1 1 1 2 1 1 1 . . . . . . . . 1 . . . 1 . . . . . . . 1 . 1 1 1 5 Average Overweight (x) . | . . . 1 . 1 . . . . . . . . . . . . . . . . . . . . . . . . . . . Largest Inventory Capacity 25 | 8 8 20 20 20 20 20 20 20 20 20 20 20 20 20 20 20 20 20 20 20 20 20 20 20 20 20 20 20 20 20 25 20 Average Capacity 19 | 7 8 16 20 20 20 20 20 20 20 20 20 20 20 20 20 20 20 20 20 20 20 20 20 20 20 20 20 20 20 20 20 19 Most Carried 20 | 1 7 20 20 20 20 20 19 20 20 20 19 20 20 20 20 20 20 20 20 20 20 20 20 20 20 20 20 20 20 20 20 20 Average Carried 19 | . 4 14 19 19 20 19 18 19 19 20 19 19 20 19 19 19 19 19 19 19 20 19 19 19 19 19 19 19 19 19 18 18 Final Capacity 20 | 8 8 20 20 20 20 20 20 20 20 20 20 20 20 20 20 20 20 20 20 20 20 20 20 20 20 20 20 20 20 20 20 5 Final Carried 20 | 1 6 20 20 20 20 19 19 20 20 20 19 20 20 20 20 20 20 20 20 20 20 20 19 20 20 20 20 20 20 18 15 2 Class Distribution -------------------- 32% | Scavenger-Tank 22% | Tank 13% | Scavenger-Skirmisher 11% | Gunner 6% | Scavenger-Gunner 3% | Hacker-Tank Dominant Class ---------------- Mutant | -10/Materials Scavenger-Gunner | -9/Materials Gunner | -9/Storage Gunner | -8/Materials Gunner | -8/Garrison Tank | -8/Materials Gunner | -7/Factory Tank | -7/Waste Tank | -7/Factory Tank | -7/Lower Caves Tank | -7/Lower Caves Tank | -7/Zion Tank | -6/Proximity Caves Tank | -6/Factory Commander-Tank | -6/Extension Scavenger-Tank | -6/Cetus Scavenger-Tank | -6/Archives Scavenger-Tank | -6/Hub_04(d) Scavenger-Tank | -5/Factory Scavenger-Skirmisher | -5/Upper Caves Scavenger-Tank | -5/Upper Caves Scavenger-Mutant | -5/Zhirov Scavenger-Tank | -4/Proximity Caves Hacker-Tank | -4/Factory Scavenger-Tank | -4/Upper Caves Scavenger-Tank | -4/Upper Caves Scavenger-Tank | -4/Warlord Scavenger-Tank | -3/Proximity Caves Scavenger-Skirmisher | -3/Research Scavenger-Skirmisher | -3/Quarantine Scavenger-Skirmisher | -2/Research Scavenger-Gunner | -1/Access Resources | -11 -10 -9 -9 -8 -8 -8 -7 -7 -7 -7 -7 -7 -6 -6 -6 -6 -6 -6 -5 -5 -5 -5 -4 -4 -4 -4 -4 -3 -3 -3 -2 -1 ----------- Run | Yrd Mat Mat Sto Mat Gar Mat Fac Was Fac Low Low Zio Pro Fac Ext Cet Arc Hub Fac Upp Upp Zhi Pro Fac Upp Upp War Pro Res Qua Res Acc Matter Collected 21060 | 243 443 1368 721 1230 118 1157 106 160 1804 99 316 60 96 376 1147 386 209 413 1433 161 177 . 321 2022 152 19 753 313 213 2655 465 1924 Remotely . | . . . . . . . . . . . . . . . . . . . . . . . . . . . . . . . . . Salvage Created 26744 | 98 559 1416 845 1960 155 1412 157 276 2158 97 403 . 60 342 1056 219 238 705 3039 120 200 . 308 3425 59 . 491 341 . 3303 473 2829 Parts 1343 | 5 36 107 58 98 11 75 5 1 109 9 17 . 2 14 66 14 14 41 172 9 8 . 16 140 3 . 17 8 . 170 14 104 Haulers Intercepted 19 | . 1 3 5 3 . 3 . . 1 . . . . . . . . . . . . . . 2 . . . . . . . 1 Recyclers Shooed 11 | . . 1 1 2 . . . . . . . . . . . . . . 2 . . . . 1 . . . . . 3 . 1 Parts Field Recycled . | . . . . . . . . . . . . . . . . . . . . . . . . . . . . . . . . . Retrieved Matter . | . . . . . . . . . . . . . . . . . . . . . . . . . . . . . . . . . Parts Self-Destructed 52 | . . . . . . . . . . 9 10 . 3 . . . . . . . 7 . 3 . 13 3 . 4 . . . . Prevented 15 | . . . . . . . . . . . 6 . . . . . . . . 4 1 . 1 . . 3 . . . . . . Kills | -11 -10 -9 -9 -8 -8 -8 -7 -7 -7 -7 -7 -7 -6 -6 -6 -6 -6 -6 -5 -5 -5 -5 -4 -4 -4 -4 -4 -3 -3 -3 -2 -1 ------- Run | Yrd Mat Mat Sto Mat Gar Mat Fac Was Fac Low Low Zio Pro Fac Ext Cet Arc Hub Fac Upp Upp Zhi Pro Fac Upp Upp War Pro Res Qua Res Acc Combat Hostiles Destroyed 413 | . 12 35 12 30 6 22 3 . 28 4 6 . 1 6 17 2 1 9 38 . 4 . 5 63 1 . 11 5 . 45 11 36 Guns 293 | . 11 34 11 27 6 22 3 . 26 4 5 . 1 5 17 2 1 8 34 . 2 . 2 36 1 . 3 2 . 21 5 4 Cannons 77 | . . 1 1 3 . . . . . . . . . 1 . . . . . . . . . 18 . . . . . 20 6 27 AOE 30 | . 1 . . . . . . . 2 . 1 . . . . . . 1 4 . 2 . 3 4 . . 8 3 . . . 1 Classes Destroyed 25 | 2 6 1 . 4 . . . . 2 . 1 . . 1 1 . . . 1 . . . 1 1 . . 1 . . 2 . 1 Worker 34 | . 1 1 2 4 . . . . 8 . . . . . . . . 1 2 . . . . 3 . . . . . 8 . 4 Builder 19 | . . . . 1 . . . . 2 . . . . . 1 . . 2 5 . . . . 4 . . . . . 2 . 2 Tunneler 3 | 1 . 1 . . . . . . . . . . . . . . . . . . . . . . . . . . . . . 1 Hauler 19 | . 1 3 5 3 . 3 . . 1 . . . . . . . . . . . . . . 2 . . . . . . . 1 Recycler 18 | 1 1 1 . 2 . 1 . . 4 . . . . . . . . . 1 . . . . 2 . . . . . 2 . 3 Mechanic 3 | . . . . . . . . . . . . . . . . . . . 1 . . . . 1 . . . . . 1 . . Operator 11 | . 1 1 . . . . . . 1 . . . . . . . 4 . 1 . . . . 1 . . . . . 2 . . Watcher 25 | . 1 4 1 4 . 1 . . 4 . . . . . 2 . . 1 5 . . . . 1 . . . . . . . 1 Swarmer 83 | . 3 16 3 3 4 . . . . 4 . . . . 3 . . 1 3 . 1 . . 26 . . . . . 3 4 9 Saboteur 1 | . . . . . . . . . . . . . . . . . . . . . . . . 1 . . . . . . . . Grunt 156 | . 9 12 3 17 2 16 3 . 17 . 6 . . 3 4 . . 2 18 . 1 . . 9 . . 5 4 . 16 . 9 Brawler 7 | . . . . . . . . . . . . . . 1 . . . 1 3 . . . . 1 . . . . . . . 1 Duelist 6 | . . . . . . . . . 1 . . . 1 1 . . . . 2 . . . . 1 . . . . . . . . Protector 1 | . . . . . . . . . . . . . . . . . . . . . . . . . . . . . . 1 . . Researcher 4 | . . . . . . . . . . . . . . . . . . . . . . . . . . . . . . 4 . . Sentry 55 | . . 7 6 4 . 6 . . 3 . . . . . 8 . 1 1 1 . 1 . . 9 . . . 1 . . 4 3 Specialist 6 | . . . . 2 . . . . . . . . . . . . . 2 . . . . . . . . . . . 2 . . Hunter 33 | . . . . 3 . . . . . . . . . . . . . 2 1 . 1 . . 6 . . . . . 8 3 9 Programmer 46 | . . . . . . . . . 7 . . . . 1 1 . . . 9 . . . . 10 1 . 5 . . 12 . . Heavy 2 | . . . . 1 . . . . . . . . . . . . . . . . . . . . . . . . . . . 1 Q-Series 4 | . . . . . . . . . . . . . . . . . . . . . . . . . . . . . . . . 4 Behemoth 2 | . . . . . . . . . . . . . . . 1 . . . 1 . . . . . . . . . . . . . Cetus Guard 2 | . . . . . . . . . . . . . . . . 2 . . . . . . . . . . . . . . . . Enhanced Grunt 1 | . . . . . . . . . . . . . . . . . . 1 . . . . . . . . . . . . . . Lightning 3 | . . . . . . . . . . . . . . . . . . . . . . . . . . . . . . 3 . . Striker 1 | . . . . . . . . . . . . . . . . . . . . . . . . . . . 1 . . . . . Samaritan 3 | . . . . . . . . . . . 1 . . . . . . . . 2 . . . . . . . . . . . . Thug 4 | . . . . . . . . . . . . . . . . . . . . . . . 4 . . . . . . . . . Guerrilla 1 | . . . . . . . . . . . . . . . . 1 . . . . . . . . . . . . . . . . Mutant 1 | . . . . . . . . . . . . . . . . . . . . . . . 1 . . . . . . . . . Best Kill Streak 17 | 1 3 5 2 6 4 3 3 . 6 4 3 . 1 3 4 1 2 6 8 . 3 . 4 17 1 . 7 4 . 13 3 10 Combat Bots Only 13 | . 3 5 2 3 4 3 3 . 5 4 3 . 1 3 4 1 1 4 7 . 3 . 4 13 1 . 7 4 . 7 3 10 Max Kills in Single Turn 4 | 1 2 2 1 3 2 1 1 . 2 1 2 . 1 2 2 1 1 4 3 1 2 . 2 3 1 . 4 1 . 3 1 2 Gunslinging 1 | . . 1 . 1 1 . . . . . 1 . . 1 . . . 1 1 . . . . 1 . . . . . 1 . . Exploded 4 | . 1 . . . . . . . 1 . 1 . . . . . . 1 2 . 2 . 2 1 . . 4 1 . . . 1 Melee . | . . . . . . . . . . . . . . . . . . . . . . . . . . . . . . . . . Uniques/NPCs Destroyed . | . . . . . . . . . . . . . . . . . . . . . . . . . . . . . . . . . Combat | -11 -10 -9 -9 -8 -8 -8 -7 -7 -7 -7 -7 -7 -6 -6 -6 -6 -6 -6 -5 -5 -5 -5 -4 -4 -4 -4 -4 -3 -3 -3 -2 -1 -------- Run | Yrd Mat Mat Sto Mat Gar Mat Fac Was Fac Low Low Zio Pro Fac Ext Cet Arc Hub Fac Upp Upp Zhi Pro Fac Upp Upp War Pro Res Qua Res Acc Hostile Shots Fired 3023 | . 66 149 43 96 20 84 8 . 110 47 37 . 17 19 249 11 3 39 188 . 17 . 38 462 . . 159 43 20 556 99 443 Missed 897 | . 13 40 18 33 3 18 1 . 41 20 16 . 7 4 86 5 2 10 53 . 6 . 15 97 . . 65 18 7 152 19 148 Deflected 23 | . . . . . . . . . . . . . . . . . . . . . . . . . . . . . . . . 23 Hits 2126 | . 53 109 25 63 17 66 7 . 69 27 21 . 10 15 163 6 1 29 135 . 11 . 23 365 . . 94 25 13 404 80 295 Melee 29 | . . . . . . . . . 2 . . . . 4 . . . . 17 . . . . 1 . . 5 . . . . . Projectile 2097 | . 53 109 25 63 17 66 7 . 67 27 21 . 10 11 163 6 1 29 118 . 11 . 23 364 . . 89 25 13 404 80 295 AOE 10 | . . . . . . . . . . . . . . . . . . . . . . . . 3 . . 3 . . . 4 . Critical Strikes 99 | . . 2 3 5 . 4 . . . 2 1 . . 2 2 3 . . 10 . . . 4 11 . . 7 2 1 27 . 13 Actively Blocked 10 | . . . . . . . . . . . . . . . . . . . . . . . . . . . 1 . . . . 9 Part Disruptions 5 | . . . . . . . . . . . . . . . . . . . 2 . . . 2 . . . 1 . . . . . Damage Taken 33528 | . 754 1188 308 1127 166 1036 116 . 1097 336 253 . 162 339 1472 162 23 528 2165 . 117 . 287 5232 . . 1736 451 201 5898 2152 6222 Core 4679 | . 218 185 57 156 17 157 13 . 177 89 11 . 20 32 168 . . 58 135 . 6 . 2 230 . . 75 86 . 880 296 1611 Absorbed by Shields 5581 | . . . . . . . . . . . 75 . . 15 297 56 . 159 717 . 123 . 31 1828 . . 773 . . 1507 . . Reduced by Siege Mode 1115 | . . . . . . . . . . . . . . . . . . . 118 . 12 . 11 450 . . 39 . . 404 37 44 Redirected to Core 489 | . . . . . . . . . . . . . . . . . . . . . . . . . . . . . . 384 105 . Ignored by Resistances 22 | . . . . . . . . . . . . . . . 22 . . . . . . . . . . . . . . . . . Regen/Repaired (Parts) 4772 | . . 209 47 27 . 78 . 105 329 . . 1439 . . . . . . 1307 . . . . 188 . . 758 . . 285 . . Core Remaining (%) 57 | 100 12 . 39 . . 40 . . . . . . 55 . . . . 69 . . . . 85 . . . . 62 . 32 79 . Volleys Fired 1224 | 12 53 96 54 75 14 81 5 6 90 4 18 . 6 15 51 12 26 25 81 5 9 . 25 140 1 . 24 34 9 128 34 91 Largest 4 | 2 2 3 3 4 4 4 4 4 4 4 4 . 4 4 4 4 4 4 4 4 4 . 4 4 4 . 4 4 3 4 4 4 Hottest 418 | 40 60 93 106 218 94 103 100 100 103 100 100 . 100 169 169 240 240 240 240 226 226 . 240 320 238 . 376 362 308 240 281 418 Shots Fired 3857 | 24 105 284 148 300 35 274 20 24 352 16 54 . 24 57 192 45 41 70 293 20 21 . 40 459 6 1 64 58 12 375 120 323 Gun 3120 | 24 105 272 128 279 32 274 20 24 349 16 48 . 24 54 185 45 41 70 291 20 19 . 38 279 5 1 55 55 7 241 69 50 Cannon 701 | . . 12 20 21 3 . . . . . . . . 3 4 . . . . . . . . 174 1 . . . 5 134 51 273 Launcher 36 | . . . . . . . . . 3 . 6 . . . 3 . . . 2 . 2 . 2 6 . . 9 3 . . . . Special . | . . . . . . . . . . . . . . . . . . . . . . . . . . . . . . . . . Kinetic 2945 | 24 95 261 128 279 32 274 20 24 349 16 48 . 24 54 185 44 21 60 250 10 13 . 11 199 2 1 19 2 5 274 69 152 Thermal 840 | . 10 23 20 21 3 . . . . . . . . 3 4 1 20 10 41 10 6 . 27 254 4 . 36 53 7 66 51 170 Explosive 27 | . . . . . . . . . 3 . . . . . . . . . 2 . 2 . 2 6 . . 9 3 . . . . Electromagnetic 45 | . . . . . . . . . . . 6 . . . 3 . . . . . . . . . . . . . . 35 . 1 Robot Hit Streak 40 | 10 14 13 10 17 15 30 15 26 16 7 14 . 5 19 25 40 20 21 38 7 14 . 15 35 4 . 9 12 1 25 11 23 Robot Miss Streak 11 | 3 4 5 3 5 2 6 1 1 11 2 3 . 3 2 2 1 2 1 4 2 4 . 1 4 . . 4 2 3 3 4 4 Penetration Max 2 | . . . . . . . . . . . . . . . . . . 1 1 . . . . 2 . . 1 . . 2 . 1 Secondary Targets 60 | . 3 4 . 5 2 5 1 . 3 3 2 . 1 2 2 . . 3 16 . . . . 7 . . . . . 1 . . Max Gunslinging Chain 2 | . 1 1 . 1 1 1 1 . 1 1 1 . 1 1 1 . . 1 2 . . . . 2 . . . . . 1 . . Shots Hit Robots 2453 | 18 67 169 86 201 18 189 16 22 212 7 38 . 13 43 153 39 30 32 204 12 15 . 18 275 2 . 42 20 1 256 69 186 Core Hits 1058 | 3 28 68 27 84 9 68 6 2 90 5 16 . 5 19 54 16 10 25 88 5 6 . 12 113 1 . 54 15 . 120 29 80 Critical Kills 47 | . . . . 3 . . . . . . . . . . . . . 6 10 . 1 . . 11 . . . . . 10 . 6 Critical Parts Destroyed 73 | . . . . 2 . 1 . . 5 . 1 . . . . 1 4 4 18 . . . . 11 . . 4 . . 20 2 . Critical Strikes 143 | . . 2 . 5 . 1 . . 5 . 1 . . . . 1 4 10 32 . 1 . . 23 . . 4 . . 38 6 10 Burn 2 | . . . . . . . . . . . . . . . . . . . . . . . . . . . . . . . 2 . Meltdown 9 | . . . . . . . . . . . . . . . . . . . . . . . . 5 . . . . . . . 4 Destroy 115 | . . . . 5 . 1 . . 4 . 1 . . . . 1 4 10 32 . 1 . . 18 . . 4 . . 30 2 2 Blast 16 | . . 2 . . . . . . . . . . . . . . . . . . . . . . . . . . . 8 2 4 Smash 1 | . . . . . . . . . 1 . . . . . . . . . . . . . . . . . . . . . . . Melee Attacks 14 | . . . . . . . . . 11 . . . . 3 . . . . . . . . . . . . . . . . . . Impact 14 | . . . . . . . . . 11 . . . . 3 . . . . . . . . . . . . . . . . . . Slashing . | . . . . . . . . . . . . . . . . . . . . . . . . . . . . . . . . . Piercing . | . . . . . . . . . . . . . . . . . . . . . . . . . . . . . . . . . Sneak Attacks 1 | . . . . . . . . . 1 . . . . . . . . . . . . . . . . . . . . . . . Combat Hostiles . | . . . . . . . . . . . . . . . . . . . . . . . . . . . . . . . . . Follow-up Attacks . | . . . . . . . . . . . . . . . . . . . . . . . . . . . . . . . . . Damage Inflicted 70477 | 219 947 2568 1435 3244 288 2992 300 414 4443 138 968 . 282 852 3439 829 1196 1915 6831 317 479 . 925 12362 45 . 3669 823 29 8990 2089 7449 Guns 44520 | 219 849 2366 1252 2929 288 2988 300 414 3934 138 626 . 282 810 3264 829 1196 838 6323 317 268 . 474 6002 45 . 1107 458 29 4177 980 818 Cannons 17766 | . . 195 181 296 . . . . . . . . . 42 69 . . . . . . . . 5062 . . . . . 4499 1109 6313 Explosions 7940 | . 98 . . . . . . . 425 . 342 . . . 106 . . 1064 497 . 211 . 451 1283 . . 2562 365 . 305 . 231 Melee 80 | . . . . . . . . . 80 . . . . . . . . . . . . . . . . . . . . . . . Ramming 171 | . . 7 2 19 . 4 . . 4 . . . . . . . . 13 11 . . . . 15 . . . . . 9 . 87 Kinetic 42711 | 219 775 2359 1252 2929 288 2988 300 414 3934 138 626 . 282 810 3264 829 428 774 5221 88 182 . 162 3459 . . 537 28 . 6268 1360 2797 Thermal 18967 | . 172 202 181 296 . . . . . . . . . 42 69 . 768 113 1277 229 86 . 312 7692 45 . 570 430 29 1391 729 4334 Explosive 5892 | . . . . . . . . . 425 . . . . . . . . . 322 . 211 . 451 1020 . . 2562 365 . 305 . 231 Electromagnetic 2656 | . . . . . . . . . . . 342 . . . 106 . . 1015 . . . . . 176 . . . . . 1017 . . Impact 80 | . . . . . . . . . 80 . . . . . . . . . . . . . . . . . . . . . . . Slashing . | . . . . . . . . . . . . . . . . . . . . . . . . . . . . . . . . . Piercing . | . . . . . . . . . . . . . . . . . . . . . . . . . . . . . . . . . Highest Corruption 24 | . 1 . . 2 2 2 . . 2 1 1 1 . 1 1 . 7 4 5 5 5 5 5 10 10 10 10 6 . 24 . 16 Average Corruption 4 | . 1 . . 2 2 2 . . 1 1 1 1 . 1 1 . 3 1 4 5 5 5 5 6 10 10 4 6 . 12 . 5 Corruption Purged 12 | . . . . . . . . . 2 . . . . . 1 . 7 . 2 . . . . . . . . . . . . . Corruption Blocked . | . . . . . . . . . . . . . . . . . . . . . . . . . . . . . . . . . Effects 477 | . 1 . . 16 6 21 . . 11 1 3 2 . 1 17 . 4 . 35 11 18 7 15 88 21 43 15 37 . 89 . 15 Message Errors 117 | . 1 . . 5 1 3 . . . . 3 1 . . 3 . 1 . 12 3 4 2 2 16 4 19 5 11 . 19 . 2 Matter Fused 112 | . . . . 1 2 4 . . 4 . . . . . 6 . 2 . 6 1 6 2 6 21 6 8 3 11 . 18 . 5 Heat Flow Errors 43 | . . . . 5 1 4 . . 1 . . . . . 3 . . . 6 . 1 . 1 6 1 6 1 3 . 3 . 1 Energy Discharges 43 | . . . . 3 1 4 . . 1 . . 1 . . 2 . . . 2 . 1 2 1 8 3 2 1 4 . 5 . 2 Parts Rejected 10 | . . . . . . . . . . . . . . 1 . . . . . . . . . 4 . . 2 . . 3 . . Parts Fused 3 | . . . . . . . . . . 1 . . . . . . . . . . . . 1 . . 1 . . . . . . Data Loss (minor) 63 | . . . . 2 1 4 . . 3 . . . . . 1 . . . 4 4 2 1 2 10 4 4 2 5 . 13 . 1 Data Loss (major) 28 | . . . . . . 1 . . . . . . . . 2 . 1 . 2 1 1 . . 7 1 2 . 3 . 4 . 3 Misfires 19 | . . . . . . . . . 2 . . . . . . . . . 1 . 1 . . 7 2 1 . . . 5 . . Alerts 10 | . . . . . . . . . . . . . . . . . . . 1 2 1 . 1 2 . . . . . 2 . 1 Misdirections 6 | . . . . . . . . . . . . . . . . . . . . . . . . . . . . . . 6 . . Weapon Failures 23 | . . . . . . 1 . . . . . . . . . . . . 1 . 1 . 1 7 . . 1 . . 11 . . Overload Shots 79 | . . . . . . . . . . . . . . . . 1 15 7 1 . . . 16 2 . . . 22 4 11 . . Effects 3 | . . . . . . . . . . . . . . . . . . 1 . . . . 1 . . . . 1 . . . . Heat Surge 2 | . . . . . . . . . . . . . . . . . . 1 . . . . 1 . . . . . . . . . Short Circuit 1 | . . . . . . . . . . . . . . . . . . . . . . . . . . . . 1 . . . . Overflow Damage 1241 | . 58 . . . . . . . 111 . 4 . . . 7 . . 45 61 . . . . 306 . . 20 . . 372 19 238 Projectiles 803 | . . . . . . . . . . . . . . . . . . . . . . . . 298 . . . . . 292 19 194 Explosions 332 | . 58 . . . . . . . 31 . 4 . . . 7 . . 45 61 . . . . 8 . . 20 . . 80 . 18 Melee 106 | . . . . . . . . . 80 . . . . . . . . . . . . . . . . . . . . . . 26 Knockbacks 59 | . . 3 . . . . . . . . . . . . . . . 1 . . . . . 1 . . . . . 38 6 10 Impact 2 | . . . . . . . . . . . . . . . . . . 1 . . . . . 1 . . . . . . . . Kinetic 53 | . . 3 . . . . . . . . . . . . . . . . . . . . . . . . . . . 34 6 10 Secondary 4 | . . . . . . . . . . . . . . . . . . . . . . . . . . . . . . 4 . . Self-Inflicted Damage 786 | . 176 . . . . . . . . . . . . . 13 . . 167 . . . . . 137 . . 196 . . . . 97 Shots 16 | . 2 . . . . . . . . . . . . . 1 . . 2 . . . . . 4 . . 6 . . . . 1 Rammed 15 | . . 2 1 2 . 1 . . 2 . . . . . . . . 1 1 . . . . 4 . . . . . 1 . . Targets Rammed 20 | . . 2 1 2 . 1 . . 2 . . . . . . . . 1 1 . . . . 4 . . . . . 2 . 4 Kicked 3 | . . . . . . . . . . . . . . . . . . . . . . . . . . . . . . . . 3 Crushed 2 | . . . . . . . . . . . . . . . . . . . . . . . . . . . . . . 1 . 1 Highest Temperature 495 | . 34 123 153 255 137 353 229 110 389 92 232 . 205 89 192 140 246 326 312 495 156 . 264 424 259 208 249 304 177 308 359 134 Average Temperature 74 | . 18 17 33 63 84 92 117 40 88 52 91 . 118 35 55 72 79 114 89 202 65 . 92 85 94 95 83 86 79 62 116 37 Received Heat Transfer 4934 | . 297 306 108 477 45 621 63 . 345 12 132 . 75 63 343 . 9 24 384 . . . 72 485 . . 65 108 9 594 54 243 Effects 13 | . . . . 1 . 5 . . 1 . . . . . . . . . . 4 . . . 2 . . . . . . . . Shutdowns 3 | . . . . . . . . . 1 . . . . . . . . . . 1 . . . 1 . . . . . . . . Energy Bleed 3 | . . . . 1 . 1 . . . . . . . . . . . . . . . . . 1 . . . . . . . . Interference 3 | . . . . . . 3 . . . . . . . . . . . . . . . . . . . . . . . . . . Matter Decay 1 | . . . . . . . . . . . . . . . . . . . . 1 . . . . . . . . . . . . Short Circuit 1 | . . . . . . . . . . . . . . . . . . . . 1 . . . . . . . . . . . . Damage (minor) 1 | . . . . . . 1 . . . . . . . . . . . . . . . . . . . . . . . . . . Damage (major) 1 | . . . . . . . . . . . . . . . . . . . . 1 . . . . . . . . . . . . Siege Activations 57 | . . . . . . . . . . . . . . . . . 1 2 12 . 2 . 1 18 1 . 2 1 . 12 3 2 Total Turns 876 | . . . . . . . . . . . . . . . . . 1 8 125 . 17 . 7 312 8 . 19 2 . 323 25 29 Longest Duration 90 | . . . . . . . . . . . . . . . . . 1 4 20 . 11 . 7 73 8 . 11 2 . 90 12 20 Martial Activations . | . . . . . . . . . . . . . . . . . . . . . . . . . . . . . . . . . Shielding Activations 4 | . . . . . . . . . . . . . . . . . . . . . . . . . . . . . . . . 4 Total Turns 108 | . . . . . . . . . . . . . . . . . . . . . . . . . . . . . . . . 108 Longest Duration 45 | . . . . . . . . . . . . . . . . . . . . . . . . . . . . . . . . 45 Robots Disrupted . | . . . . . . . . . . . . . . . . . . . . . . . . . . . . . . . . . Combat Hostiles . | . . . . . . . . . . . . . . . . . . . . . . . . . . . . . . . . . Robots Corrupted 7 | . . . . . . . . . 1 . . . . . . . . 1 . . . . . . . . . . . 4 . 1 Combat Hostiles 4 | . . . . . . . . . . . . . . . . . . . . . . . . . . . . . . 4 . . Parts Fried 24 | . . . . . . . . . 2 . . . . . . . . 7 . . . . . . . . . . . 13 . 2 Impact Corruptions 6 | . . . . . . . . . 3 . . . . . . . . . . . . . . . . . . . . 1 . 2 Robots Melted 9 | . . . . . . . . . . . . . . . . . . . . . . . . 5 . . . . . . . 4 Combat Hostiles 9 | . . . . . . . . . . . . . . . . . . . . . . . . 5 . . . . . . . 4 Parts Melted 53 | . . . . 1 . . . . . . . . . . 1 . 2 . 2 6 1 . . 20 . . 1 3 . 1 2 13 Heat Transferred 18622 | . 200 450 296 407 . . . . . . . . . 37 74 . 711 124 1321 296 111 . 333 6303 37 . 538 592 37 1563 1418 3774 Parts Sabotaged . | . . . . . . . . . . . . . . . . . . . . . . . . . . . . . . . . . Parts Stolen . | . . . . . . . . . . . . . . . . . . . . . . . . . . . . . . . . . Parts Stripped . | . . . . . . . . . . . . . . . . . . . . . . . . . . . . . . . . . Power Chain Reactions 2 | . . . . . . . . . . . . . . . 1 . . 1 . . . . . . . . . . . . . . Alert | -11 -10 -9 -9 -8 -8 -8 -7 -7 -7 -7 -7 -7 -6 -6 -6 -6 -6 -6 -5 -5 -5 -5 -4 -4 -4 -4 -4 -3 -3 -3 -2 -1 ------- Run | Yrd Mat Mat Sto Mat Gar Mat Fac Was Fac Low Low Zio Pro Fac Ext Cet Arc Hub Fac Upp Upp Zhi Pro Fac Upp Upp War Pro Res Qua Res Acc Maximum Alert Level 5 | . . 2 . 1 1 1 . . 3 . . . . . 2 1 . 4 3 . . . . 5 . . . . . 3 2 3 Low Security (%) 54 | 100 100 36 100 79 50 95 100 100 52 . . . . 100 69 50 100 84 . . . . . 20 . . . . 100 33 . 33 Level 1 22 | . . 47 . 20 49 4 . . 24 . . . . . 16 49 . 10 39 . . . . 1 . . . . . 32 94 46 Level 2 13 | . . 15 . . . . . . 20 . . . . . 14 . . . 18 . . . . 37 . . . . . 32 5 3 Level 3 6 | . . . . . . . . . 2 . . . . . . . . 4 41 . . . . 17 . . . . . 1 . 15 Level 4 2 | . . . . . . . . . . . . . . . . . . . . . . . . 18 . . . . . . . . Level 5 . | . . . . . . . . . . . . . . . . . . . . . . . . 2 . . . . . . . . High Security . | . . . . . . . . . . . . . . . . . . . . . . . . 1 . . . . . . . . Max Security . | . . . . . . . . . . . . . . . . . . . . . . . . . . . . . . . . . Peak Influence 2053 | 5 148 472 190 289 233 264 158 51 714 . . . . 129 550 301 178 1249 955 . . . . 2053 . . . . 27 702 412 936 Initial 611 | . . 14 190 37 74 113 118 51 . . . . . . 4 296 32 . 611 . . . . 450 . . . . . . 373 148 Average 265 | . 69 223 72 101 159 108 105 4 232 . . . . 39 140 195 48 106 560 . . . . 734 . . . . 1 290 332 330 Influence Increases 17733 | 10 495 1076 542 933 159 732 100 . 1047 90 140 . 88 283 1113 291 240 1497 1484 . 90 . . 3014 30 . 496 125 62 1687 379 1530 Destroy 0b10 Robot/C 9020 | . 240 700 240 600 120 440 60 . 560 80 120 . 60 200 600 140 80 300 760 . 80 . . 1260 20 . 360 100 . 960 220 720 Destroy 0b10 Robot/NC 690 | 10 25 55 40 70 . 25 . . 100 . . . . . 25 10 20 25 75 . . . . 70 . . . . . 80 . 60 Destroy Leader 1770 | . 54 194 112 174 10 118 10 . 130 10 20 . 10 30 54 . . 54 160 . 10 . . 256 10 . . 10 . 140 60 144 Allied During Kill 843 | . . . . . . . . . 14 . . . 18 33 375 118 100 139 . . . . . . . . 46 . . . . . Successful Hack 656 | . 32 12 11 45 14 13 . . 91 . . . . . 31 . . 22 133 . . . . 177 . . . . 27 48 . . Select Force Hacks 360 | . 60 60 30 30 . 60 30 . 90 . . . . . . . . . . . . . . . . . . . . . . . Disable Machine 1215 | . 30 . 60 . . . . . 15 . . . . 15 . 15 30 465 105 . . . . 225 . . . . 15 165 . 75 Anti-Garrison Action 300 | . . . . . . . . . . . . . . . . . . 150 . . . . . . . . . . . . . 150 Destroy Structure 1649 | . 39 10 4 14 15 1 . . 17 . . . . 5 13 8 10 297 146 . . . . 486 . . . . 20 204 69 291 Advance Influence 450 | . . . . . . . . . . . . . . . . . . . . . . . . 450 . . . . . . . . Partial Spotted 30 | . . 15 . . . . . . . . . . . . . . . . . . . . . 15 . . . . . . . . Lose Combat Pursuer 750 | . 15 30 45 . . 75 . . 30 . . . . . 15 . . 45 105 . . . . 75 . . 90 15 . 90 30 90 Influence Decreases 17034 | 10 461 659 905 906 41 704 213 148 335 536 338 68 88 273 593 740 321 248 1786 590 363 84 . 961 1046 662 587 409 62 1022 796 1079 Entered New Map 4557 | . . 20 261 51 41 120 143 97 . 264 51 68 . . 6 234 49 . 638 352 69 84 . . 760 198 375 284 . . 292 100 Time Decay 9628 | 10 345 581 536 555 . 574 70 51 335 262 287 . 88 273 462 326 252 237 658 238 294 . . 593 286 464 122 125 62 519 464 559 Lost Part 646 | . 20 10 . . . 10 . . . 10 . . . . 16 . . 10 40 . . . . 40 . . 40 . . 110 40 300 Lost Ally 497 | . . 5 . . . . . . . . . . . . 109 180 20 1 . . . . . 12 . . 50 . . . . 120 Purge Threat 1706 | . 96 43 108 300 . . . . . . . . . . . . . . 450 . . . . 316 . . . . . 393 . . Squads Dispatched 117 | . 3 5 4 7 . 7 1 . 17 . . . . 3 2 . . 7 13 . . . . 15 . . . . 8 13 1 11 Investigation 32 | . 2 3 2 3 . 5 1 . 6 . . . . 1 1 . . 1 2 . . . . 3 . . . . 1 . . 1 Extermination 28 | . . . . . . . . . 7 . . . . 1 . . . 1 5 . . . . 5 . . . . . 5 . 4 Reinforcement 39 | . 1 2 2 3 . 2 . . . . . . . 1 1 . . 3 1 . . . . 4 . . . . 7 8 1 3 Assault 11 | . . . . . . . . . 1 . . . . . . . . 2 2 . . . . 3 . . . . . . . 3 Garrison 7 | . . . . 1 . . . . 3 . . . . . . . . . 3 . . . . . . . . . . . . . Intercept . | . . . . . . . . . . . . . . . . . . . . . . . . . . . . . . . . . Searches Triggered . | . . . . . . . . . . . . . . . . . . . . . . . . . . . . . . . . . Construction Impeded 6 | . . . . . . . . . . . . . . . 1 . . 2 . . . . . 2 . . . . . 1 . . Haulers Reinforced 4 | . . . . . . . . . . . . . . . . . . . . . . . . . . . . . 1 1 1 1 Active Scanning Responses . | . . . . . . . . . . . . . . . . . . . . . . . . . . . . . . . . . Cargo Convoy Interrupts . | . . . . . . . . . . . . . . . . . . . . . . . . . . . . . . . . . Stealth | -11 -10 -9 -9 -8 -8 -8 -7 -7 -7 -7 -7 -7 -6 -6 -6 -6 -6 -6 -5 -5 -5 -5 -4 -4 -4 -4 -4 -3 -3 -3 -2 -1 --------- Run | Yrd Mat Mat Sto Mat Gar Mat Fac Was Fac Low Low Zio Pro Fac Ext Cet Arc Hub Fac Upp Upp Zhi Pro Fac Upp Upp War Pro Res Qua Res Acc Distress Signals 52 | . . 7 6 1 . 4 . . . . . . . . 1 2 . . 1 . . . . 6 . . 1 . 8 3 8 4 Communications Jammed 72 | . . . . . . . . . . . . . . . . . . . . . . . . . . . . . . 27 30 15 Distress Signals 71 | . . . . . . . . . . . . . . . . . . . . . . . . . . . . . . 27 30 14 Times Spotted 698 | . 22 50 26 35 6 36 4 . 37 5 7 . 4 11 29 10 14 12 51 . 3 . 6 90 . . 55 6 14 79 24 62 Peak Tracking Total 15 | . 3 5 5 3 4 5 3 . 5 3 3 . 3 3 4 5 1 6 8 . 3 . 4 10 . . 15 4 4 8 5 14 Tactical Retreats 34 | . 1 2 3 . . 4 . . 2 . . . . . 1 . . 2 4 . . . . 4 . . 3 1 . 4 1 2 Traps | -11 -10 -9 -9 -8 -8 -8 -7 -7 -7 -7 -7 -7 -6 -6 -6 -6 -6 -6 -5 -5 -5 -5 -4 -4 -4 -4 -4 -3 -3 -3 -2 -1 ------- Run | Yrd Mat Mat Sto Mat Gar Mat Fac Was Fac Low Low Zio Pro Fac Ext Cet Arc Hub Fac Upp Upp Zhi Pro Fac Upp Upp War Pro Res Qua Res Acc Traps Triggered 17 | . . . 2 1 1 1 1 . . . . . . . 1 . . 2 3 . . . . 4 . . . . . 1 . . Indirectly 1 | . . . . . . . . . . . . . . . . . . 1 . . . . . . . . . . . . . . Trap Hack Attempts . | . . . . . . . . . . . . . . . . . . . . . . . . . . . . . . . . . Triggered . | . . . . . . . . . . . . . . . . . . . . . . . . . . . . . . . . . Disarmed . | . . . . . . . . . . . . . . . . . . . . . . . . . . . . . . . . . Reprogrammed . | . . . . . . . . . . . . . . . . . . . . . . . . . . . . . . . . . Reused . | . . . . . . . . . . . . . . . . . . . . . . . . . . . . . . . . . Traps Extracted . | . . . . . . . . . . . . . . . . . . . . . . . . . . . . . . . . . Installed . | . . . . . . . . . . . . . . . . . . . . . . . . . . . . . . . . . Triggered . | . . . . . . . . . . . . . . . . . . . . . . . . . . . . . . . . . Objects Rigged 1 | . . . . . . . . . . . . . . . . . . 1 . . . . . . . . . . . . . . Machines | -11 -10 -9 -9 -8 -8 -8 -7 -7 -7 -7 -7 -7 -6 -6 -6 -6 -6 -6 -5 -5 -5 -5 -4 -4 -4 -4 -4 -3 -3 -3 -2 -1 ---------- Run | Yrd Mat Mat Sto Mat Gar Mat Fac Was Fac Low Low Zio Pro Fac Ext Cet Arc Hub Fac Upp Upp Zhi Pro Fac Upp Upp War Pro Res Qua Res Acc Machines Disabled 85 | . 2 . 4 . . . . . 1 . . . . 1 1 1 2 32 7 . . . . 15 . . . 1 1 11 . 6 Max in Single Turn 22 | . 2 . 1 . . . . . 1 . . . . 1 . 1 1 22 2 . . . . 4 . . . 1 1 2 . 1 Garrison Access 11 | . . . . . . 1 . . 1 . . . . . . . . 1 2 . . . . 2 . . . . . 1 2 1 Network Hub 2 | . . . . . . . . . . . . . . . . . . 2 . . . . . . . . . . . . . . Machines Repaired . | . . . . . . . . . . . . . . . . . . . . . . . . . . . . . . . . . Machines Dismantled . | . . . . . . . . . . . . . . . . . . . . . . . . . . . . . . . . . Machines Sabotaged . | . . . . . . . . . . . . . . . . . . . . . . . . . . . . . . . . . Overloaded Fab Kills . | . . . . . . . . . . . . . . . . . . . . . . . . . . . . . . . . . Hacking | -11 -10 -9 -9 -8 -8 -8 -7 -7 -7 -7 -7 -7 -6 -6 -6 -6 -6 -6 -5 -5 -5 -5 -4 -4 -4 -4 -4 -3 -3 -3 -2 -1 --------- Run | Yrd Mat Mat Sto Mat Gar Mat Fac Was Fac Low Low Zio Pro Fac Ext Cet Arc Hub Fac Upp Upp Zhi Pro Fac Upp Upp War Pro Res Qua Res Acc Machines Accessed 141 | . 8 10 7 9 1 9 1 . 15 1 . . . 2 11 1 . 4 15 . . 4 . 20 2 1 3 1 3 11 . 2 Terminals 82 | . 6 7 4 5 1 5 . . 7 . . . . . 11 1 . 4 7 . . . . 11 . . . . 3 9 . 1 Fabricators 6 | . . . . . . . . . 1 . . . . 1 . . . . 2 . . . . 2 . . . . . . . . Repair Stations 13 | . . 1 1 1 . 1 . . 2 . . . . 1 . . . . 2 . . . . 3 . . . . . 1 . . Recycling Units 13 | . 2 2 2 1 . 2 1 . 3 . . . . . . . . . . . . . . . . . . . . . . . Scanalyzers 5 | . . . . 1 . . . . 1 . . . . . . . . . 2 . . . . 1 . . . . . . . . Garrison Access 10 | . . . . 1 . 1 . . 1 . . . . . . . . . 2 . . . . 3 . . . . . 1 . 1 Total Hacks 429 | . 20 29 20 26 2 21 1 . 36 1 . . . 4 21 3 . 8 73 . . 17 . 79 4 1 5 1 5 48 . 4 Successful 223 | . 7 12 8 13 1 10 1 . 19 1 . . . . 9 . . 4 39 . . 17 . 45 4 1 5 1 1 25 . . Failed 205 | . 12 17 12 13 1 11 . . 17 . . . . 4 12 3 . 4 34 . . . . 34 . . . . 4 23 . 4 Catastrophic 42 | . 1 3 1 2 . 2 . . 3 . . . . 2 3 . . . 8 . . . . 5 . . . . 1 8 . 3 Database Lockouts 1 | . 1 . . . . . . . . . . . . . . . . . . . . . . . . . . . . . . . Manual 144 | . 17 13 9 14 . 11 1 . 19 . . . . . 5 1 . 5 17 . . . . 23 . . . . 3 6 . . Terminals 257 | . 18 22 11 17 2 15 . . 16 . . . . . 21 3 . 8 37 . . . . 50 . . . . 5 30 . 2 Fabricators 19 | . . . . . . . . . 3 . . . . 2 . . . . 6 . . . . 8 . . . . . . . . Repair Stations 68 | . . 4 6 3 . 3 . . 8 . . . . 2 . . . . 13 . . . . 13 . . . . . 16 . . Recycling Units 16 | . 2 3 3 1 . 2 1 . 4 . . . . . . . . . . . . . . . . . . . . . . . Scanalyzers 20 | . . . . 3 . . . . 3 . . . . . . . . . 12 . . . . 2 . . . . . . . . Garrison Access 20 | . . . . 2 . 1 . . 2 . . . . . . . . . 5 . . . . 6 . . . . . 2 . 2 Terminal Hacks 117 | . 4 4 2 5 1 3 . . 6 1 . . . . 8 . . 2 16 . . 17 . 24 4 1 5 1 1 12 . . Record 18 | . . . . . . . . . 1 . . . . . . . . . . . . 5 . 2 3 . 4 1 . 2 . . Part Schematic 8 | . . . . . . . . . . . . . . . . . . . 2 . . 4 . 2 . . . . . . . . Robot Analysis 13 | . 2 1 . 1 . 1 . . 3 . . . . . 1 . . . . . . 4 . . . . . . . . . . Prototype ID Bank 4 | . . . . . . . . . . . . . . . . . . . . . . 4 . . . . . . . . . . Open Door 13 | . . . 1 . . . . . . 1 . . . . 7 . . . . . . . . . 1 1 1 . . 1 . . Branch Access Points 6 | . . 1 . . . . . . 1 . . . . . . . . . 1 . . . . 1 . . . . 1 1 . . Emergency Access Points 4 | . . . . . . . . . . . . . . . . . . 1 3 . . . . . . . . . . . . . Terminal Index 2 | . . . . . . . . . . . . . . . . . . . 1 . . . . 1 . . . . . . . . Fabricator Index 2 | . . . . . . . . . . . . . . . . . . . 1 . . . . 1 . . . . . . . . Repair Station Index 2 | . . . . . . . . . . . . . . . . . . . 1 . . . . 1 . . . . . . . . Garrison Index 2 | . . . . . . . . . . . . . . . . . . . 1 . . . . 1 . . . . . . . . Unreport Threat 17 | . 1 2 1 2 . . . . . . . . . . . . . . 3 . . . . 4 . . . . . 4 . . Locate Traps 1 | . . . . . . . . . . . . . . . . . . . . . . . . 1 . . . . . . . . Maintenance Status 1 | . . . . . . . . . . . . . . . . . . . . . . . . 1 . . . . . . . . Security Status 1 | . . . . . . . . . . . . . . . . . . . . . . . . 1 . . . . . . . . Transport Status 1 | . . . . . . 1 . . . . . . . . . . . . . . . . . . . . . . . . . . Recall Investigation 3 | . . . . . . . . . . . . . . . . . . . 1 . . . . 1 . . . . . 1 . . Recall Extermination 2 | . . . . . . . . . 1 . . . . . . . . . . . . . . 1 . . . . . . . . Recall Reinforcements 1 | . . . . . . . . . . . . . . . . . . . . . . . . 1 . . . . . . . . Recall Assault 1 | . . . . . . . . . . . . . . . . . . . . . . . . 1 . . . . . . . . Hauler Manifests 3 | . 1 . . 1 . 1 . . . . . . . . . . . . . . . . . . . . . . . . . . Registered Components 3 | . . . . . . . . . . . . . . . . . . . 1 . . . . 1 . . . . . 1 . . Registered Prototypes 1 | . . . . . . . . . . . . . . . . . . . . . . . . 1 . . . . . . . . Zone Layout 7 | . . . . 1 . . . . . . . . . . . . . 1 1 . . . . 2 . . . . . 2 . . Garrison Registry 1 | . . . . . 1 . . . . . . . . . . . . . . . . . . . . . . . . . . . Fabricator Hacks 9 | . . . . . . . . . 1 . . . . . . . . . 4 . . . . 4 . . . . . . . . Network Status 2 | . . . . . . . . . 1 . . . . . . . . . 1 . . . . . . . . . . . . . Load Schematic 4 | . . . . . . . . . . . . . . . . . . . 2 . . . . 2 . . . . . . . . Build 3 | . . . . . . . . . . . . . . . . . . . 1 . . . . 2 . . . . . . . . Repair Station Hacks 41 | . . 4 4 2 . 2 . . 4 . . . . . . . . . 7 . . . . 7 . . . . . 11 . . Scan Component 23 | . . 2 2 1 . 1 . . 3 . . . . . . . . . 4 . . . . 4 . . . . . 6 . . Repair 18 | . . 2 2 1 . 1 . . 1 . . . . . . . . . 3 . . . . 3 . . . . . 5 . . Recycling Unit Hacks . | . . . . . . . . . . . . . . . . . . . . . . . . . . . . . . . . . Scanalyzer 14 | . . . . 2 . . . . 2 . . . . . . . . . 8 . . . . 2 . . . . . . . . Insert Component 6 | . . . . 1 . . . . 1 . . . . . . . . . 3 . . . . 1 . . . . . . . . Analyze 8 | . . . . 1 . . . . 1 . . . . . . . . . 5 . . . . 1 . . . . . . . . Garrison Access Hacks 8 | . . . . 1 . 1 . . 1 . . . . . . . . . 2 . . . . 2 . . . . . 1 . . Unlock Access 1 | . . . . 1 . . . . . . . . . . . . . . . . . . . . . . . . . . . . Seal Access 7 | . . . . . . 1 . . 1 . . . . . . . . . 2 . . . . 2 . . . . . 1 . . Unauthorized Hacks 34 | . 3 4 2 3 . 4 1 . 5 . . . . . 1 . . 2 2 . . . . 6 . . . . . 1 . . Terminals 20 | . 1 2 1 2 . 2 . . 2 . . . . . 1 . . 2 2 . . . . 4 . . . . . 1 . . Assimilate 3 | . 1 . . . . . . . . . . . . . . . . . . . . . . 2 . . . . . . . . Botnet 16 | . . 2 1 2 . 2 . . 2 . . . . . 1 . . 1 2 . . . . 2 . . . . . 1 . . Detonate 1 | . . . . . . . . . . . . . . . . . . 1 . . . . . . . . . . . . . . Fabricators 2 | . . . . . . . . . . . . . . . . . . . . . . . . 2 . . . . . . . . Prioritize 2 | . . . . . . . . . . . . . . . . . . . . . . . . 2 . . . . . . . . Repair Stations . | . . . . . . . . . . . . . . . . . . . . . . . . . . . . . . . . . Recycling Units 12 | . 2 2 1 1 . 2 1 . 3 . . . . . . . . . . . . . . . . . . . . . . . Tunnel 12 | . 2 2 1 1 . 2 1 . 3 . . . . . . . . . . . . . . . . . . . . . . . Scanalyzers . | . . . . . . . . . . . . . . . . . . . . . . . . . . . . . . . . . Garrison Access . | . . . . . . . . . . . . . . . . . . . . . . . . . . . . . . . . . Data Cores Recovered 5 | . 1 1 . . . . . . 1 . . . . . . . . . 1 . . . . . . . . . 1 . . . Used 1 | . 1 . . . . . . . . . . . . . . . . . . . . . . . . . . . . . . . Hacking Detections 97 | . 5 8 5 7 1 5 . . 12 . . . . 2 8 1 . 4 12 . . . . 16 . . . . 2 7 . 2 Full Trace Events 17 | . 2 1 2 1 . 2 . . 3 . . . . 1 1 . . . 2 . . . . 2 . . . . . . . . Feedback Events 1 | . 1 . . . . . . . . . . . . . . . . . . . . . . . . . . . . . . . Corruption 1 | . 1 . . . . . . . . . . . . . . . . . . . . . . . . . . . . . . . Feedback Blocked . | . . . . . . . . . . . . . . . . . . . . . . . . . . . . . . . . . Robot Schematics Acquired 5 | . . . . . . . . . . . . . . . . . . . . . . . . . . . . . . 5 . . Robots Built . | . . . . . . . . . . . . . . . . . . . . . . . . . . . . . . . . . Authchips . | . . . . . . . . . . . . . . . . . . . . . . . . . . . . . . . . . Time . | . . . . . . . . . . . . . . . . . . . . . . . . . . . . . . . . . Total Robot Build Rating . | . . . . . . . . . . . . . . . . . . . . . . . . . . . . . . . . . Part Schematics Acquired 20 | . . . . 1 . . . . . . . . . . . . . . 4 . . 4 . 3 . . . . . 8 . . Parts Built 4 | . . . . . . . . . . . . . . . . . . . 2 . . . . 2 . . . . . . . . Authchips . | . . . . . . . . . . . . . . . . . . . . . . . . . . . . . . . . . Time 196 | . . . . . . . . . . . . . . . . . . . 58 . . . . 138 . . . . . . . . Total Part Build Rating 32 | . . . . . . . . . . . . . . . . . . . 14 . . . . 18 . . . . . . . . Parts Repaired 16 | . . 2 2 1 . 1 . . 1 . . . . . . . . . 3 . . . . 2 . . . . . 4 . . Time 944 | . . 64 89 51 . 51 . . 39 . . . . . . . . . 184 . . . . 159 . . . . . 307 . . Parts Recycled . | . . . . . . . . . . . . . . . . . . . . . . . . . . . . . . . . . Recycled Matter . | . . . . . . . . . . . . . . . . . . . . . . . . . . . . . . . . . Retrieved Matter . | . . . . . . . . . . . . . . . . . . . . . . . . . . . . . . . . . Retrieved Components . | . . . . . . . . . . . . . . . . . . . . . . . . . . . . . . . . . Parts Scanalyzed 5 | . . . . 1 . . . . 1 . . . . . . . . . 2 . . . . 1 . . . . . . . . Part Schematics Acquired 4 | . . . . 1 . . . . . . . . . . . . . . 2 . . . . 1 . . . . . . . . Parts Damaged 1 | . . . . . . . . . . . . . . . . . . . 1 . . . . . . . . . . . . . Bothacking | -11 -10 -9 -9 -8 -8 -8 -7 -7 -7 -7 -7 -7 -6 -6 -6 -6 -6 -6 -5 -5 -5 -5 -4 -4 -4 -4 -4 -3 -3 -3 -2 -1 ------------ Run | Yrd Mat Mat Sto Mat Gar Mat Fac Was Fac Low Low Zio Pro Fac Ext Cet Arc Hub Fac Upp Upp Zhi Pro Fac Upp Upp War Pro Res Qua Res Acc Used RIF Installer . | . . . . . . . . . . . . . . . . . . . . . . . . . . . . . . . . . Robots Hacked . | . . . . . . . . . . . . . . . . . . . . . . . . . . . . . . . . . Non-combat . | . . . . . . . . . . . . . . . . . . . . . . . . . . . . . . . . . Combat . | . . . . . . . . . . . . . . . . . . . . . . . . . . . . . . . . . Robot Hacks Applied . | . . . . . . . . . . . . . . . . . . . . . . . . . . . . . . . . . Relay Couplers Released 4 | . . . . . . . . . . . . . . . . . . 2 . . . . . . . . . . . . 1 1 Machine Destruction 4 | . . . . . . . . . . . . . . . . . . 2 . . . . . . . . . . . . 1 1 Fabnet Peak Effective % . | . . . . . . . . . . . . . . . . . . . . . . . . . . . . . . . . . Robots Rewired 14 | . . . . . . . . . . . . . . . 10 . . . . . . . . . . . 4 . . . . . Allies Hacked . | . . . . . . . . . . . . . . . . . . . . . . . . . . . . . . . . . Hacks Repelled . | . . . . . . . . . . . . . . . . . . . . . . . . . . . . . . . . . Allies | -11 -10 -9 -9 -8 -8 -8 -7 -7 -7 -7 -7 -7 -6 -6 -6 -6 -6 -6 -5 -5 -5 -5 -4 -4 -4 -4 -4 -3 -3 -3 -2 -1 -------- Run | Yrd Mat Mat Sto Mat Gar Mat Fac Was Fac Low Low Zio Pro Fac Ext Cet Arc Hub Fac Upp Upp Zhi Pro Fac Upp Upp War Pro Res Qua Res Acc Total Allies 60 | . 1 . . . . . . 20 . . . 3 . . 19 5 . . . . . . . 2 . . 4 . . . . 6 Largest Group 20 | . 1 1 . . . . . 20 20 . . 3 3 3 13 11 6 4 . . . . . 1 . . 4 . . . . 6 Highest-Rated Group 739 | . 10 10 . . . . . 526 526 . . 93 93 93 443 739 564 384 . . . . . 26 . . 208 . . . . 85 Highest-Rated Ally 159 | . 10 10 . . . . . 31 31 . . 31 31 31 159 159 159 96 . . . . . 26 . . 64 . . . . 15 Total Orders 7 | . . . . . . . . . . . . . . . . . . 7 . . . . . . . . . . . . . . STAY 4 | . . . . . . . . . . . . . . . . . . 4 . . . . . . . . . . . . . . FOLLOW 3 | . . . . . . . . . . . . . . . . . . 3 . . . . . . . . . . . . . . Ally Attacks 340 | . . . . . . . . . 22 . . . 8 22 112 62 20 32 . . . . . . . . 44 . . . . 18 Total Damage 8899 | . . . . . . . . . 133 . . . 231 493 2157 1824 746 1135 . . . . . . . . 1470 . . . . 710 Kills 47 | . . . . . . . . . . . . . 2 4 17 7 3 7 . . . . . . . . 7 . . . . . Allies Corrupted 3 | . . . . . . . . . . . . . . 1 . . . 2 . . . . . . . . . . . . . . Allies Melted 1 | . . . . . . . . . 1 . . . . . . . . . . . . . . . . . . . . . . . Intel | -11 -10 -9 -9 -8 -8 -8 -7 -7 -7 -7 -7 -7 -6 -6 -6 -6 -6 -6 -5 -5 -5 -5 -4 -4 -4 -4 -4 -3 -3 -3 -2 -1 ------- Run | Yrd Mat Mat Sto Mat Gar Mat Fac Was Fac Low Low Zio Pro Fac Ext Cet Arc Hub Fac Upp Upp Zhi Pro Fac Upp Upp War Pro Res Qua Res Acc Active Infowar (turns) 32977 | 17 846 1592 . 329 697 1649 131 625 2713 561 791 1976 715 720 940 . 450 867 875 512 653 333 654 3215 634 1177 1093 1463 1179 2784 1173 1613 Optics 7248 | . . . . . . . . . . . . . . . . . . . . . . . . . . . . 499 1179 2784 1173 1613 Sensors 17813 | . . . . . . 32 . . . . . . . 89 940 . 450 867 425 512 653 333 654 2690 634 1177 1093 1390 1170 2752 1173 779 Terrain 1383 | 17 846 520 . . . . . . . . . . . . . . . . . . . . . . . . . . . . . . Structural 9370 | . . . . . . . . . . . . . . . . . . . 450 455 198 . . 1469 . 166 108 1290 1179 2364 1172 519 Seismic 11632 | . . 1381 . 329 697 1082 131 625 2713 561 791 1976 715 631 . . . . . . . . . . . . . . . . . . T.N.C. 537 | . . . . . . 537 . . . . . . . . . . . . . . . . . . . . . . . . . . Jamming 6819 | . . . . . . . . . . . . . . . . . . . . . . . . 966 . 916 . . 1179 1017 1152 1589 ECM 129 | . . . . . . . . . . . . . . . . . . . . . . . . 129 . . . . . . . . Robot Analysis Total 13 | . 2 1 . 1 . 1 . . 3 . . . . . 1 . . . . . . 4 . . . . . . . . . . Derelict Logs Recovered 6 | . . . . . . . . . . 2 . . 2 . . . . . . 1 . . 1 . . . . . . . . . Drone Launches . | . . . . . . . . . . . . . . . . . . . . . . . . . . . . . . . . . Drone Recoveries . | . . . . . . . . . . . . . . . . . . . . . . . . . . . . . . . . . Exploration | -11 -10 -9 -9 -8 -8 -8 -7 -7 -7 -7 -7 -7 -6 -6 -6 -6 -6 -6 -5 -5 -5 -5 -4 -4 -4 -4 -4 -3 -3 -3 -2 -1 ------------- Run | Yrd Mat Mat Sto Mat Gar Mat Fac Was Fac Low Low Zio Pro Fac Ext Cet Arc Hub Fac Upp Upp Zhi Pro Fac Upp Upp War Pro Res Qua Res Acc Turns Passed 44018 | 190 846 1977 1855 1926 697 1747 140 625 3174 570 860 2014 715 721 2943 721 972 914 2479 512 653 333 692 3974 634 1177 1709 1463 1179 2784 1173 1649 Spaces Moved 20820 | 91 564 715 609 711 269 603 74 366 1573 341 478 1220 422 392 1347 362 291 497 1135 306 376 189 348 1766 365 701 939 791 630 1015 549 785 Core 31 | 4 . . . . . . . . . . . . . . . . . . . . . . . . . . . . . . . 27 Treads 19721 | 87 153 629 609 711 269 603 74 366 1573 341 478 1220 422 392 1347 362 291 497 1135 306 376 189 348 1766 365 701 939 791 630 1015 549 187 Legs 571 | . . . . . . . . . . . . . . . . . . . . . . . . . . . . . . . . 571 Wheels 497 | . 411 86 . . . . . . . . . . . . . . . . . . . . . . . . . . . . . . Hover . | . . . . . . . . . . . . . . . . . . . . . . . . . . . . . . . . . Flight . | . . . . . . . . . . . . . . . . . . . . . . . . . . . . . . . . . Fastest Speed 50 | 50 95 95 240 160 238 155 158 158 158 163 163 163 163 163 163 160 160 160 160 160 160 160 160 160 160 160 160 166 166 150 158 50 Average Speed 169 | 156 115 194 240 201 238 222 158 158 162 163 163 163 163 163 163 161 160 160 160 160 160 160 160 160 160 160 161 166 173 176 181 147 Slowest Speed 490 | 160 160 240 320 243 238 238 158 158 163 163 163 163 163 163 245 163 160 160 240 160 160 160 160 160 160 160 245 166 270 270 260 490 Overloaded Moves . | . . . . . . . . . . . . . . . . . . . . . . . . . . . . . . . . . Propulsion Burnouts . | . . . . . . . . . . . . . . . . . . . . . . . . . . . . . . . . . Robots Hopped . | . . . . . . . . . . . . . . . . . . . . . . . . . . . . . . . . . Potential Cave-ins 11 | . . . . . . . . . . . . . . . . . . . . . . . 3 2 . . . 2 . . . 4 Cave-ins Triggered 1 | . . . . . . . . . . . . . . . . . . . . . . . . . . . . . . . . 1 Teleports 1 | . . . . . . . . . . . . . . . . . . . . . . . . . . . 1 . . . . . Exploration Rate (%) 55 | 6 84 68 66 51 41 55 4 97 36 58 60 87 56 9 97 76 89 26 33 50 65 62 61 47 54 75 91 83 17 92 16 27 Regions Visited 32 Branch Regions 18 Pre-discovered Areas 19 | . 2 2 1 1 . 2 1 . 3 1 . 2 . . . . . . . . . 3 1 . . . . . . . . . Known Exits Taken 15 | . . 1 . 1 . . . . 1 . . . . 1 . . . 1 1 . . . 1 1 1 1 1 1 1 1 1 . Unknown Exits Taken 14 | 1 1 . 1 . . 1 . . . 1 1 1 1 . 1 1 1 . . 1 1 1 . . . . . . . . . . Scrap Searched 20 | . . . . . . . . . . 3 1 2 2 . . . . . . 1 2 . 3 . 1 1 . 4 . . . . Spaces Dug 98 | . . . . . . . . . 9 . . . . 3 . . . 8 11 . . . 7 26 . . . 6 5 7 2 14 Terrain Destroyed 1269 | . 39 1 1 10 . . . . 11 . . . . 4 1 . 11 344 82 2 15 . 58 284 5 2 79 78 10 105 24 103 Melee 12 | . . . . . . . . . 9 . . . . 3 . . . . . . . . . . . . . . . . . . Projectile 495 | . . 1 1 10 . . . . . . . . . 1 1 . 11 32 54 2 6 . 18 143 5 2 6 32 10 58 24 78 AOE 760 | . 39 . . . . . . . 2 . . . . . . . . 312 28 . 9 . 40 141 . . 73 46 . 45 . 25 Terrain Rammed . | . . . . . . . . . . . . . . . . . . . . . . . . . . . . . . . . . Walls Destroyed . | . . . . . . . . . . . . . . . . . . . . . . . . . . . . . . . . . Machines Disabled . | . . . . . . . . . . . . . . . . . . . . . . . . . . . . . . . . . Actions | -11 -10 -9 -9 -8 -8 -8 -7 -7 -7 -7 -7 -7 -6 -6 -6 -6 -6 -6 -5 -5 -5 -5 -4 -4 -4 -4 -4 -3 -3 -3 -2 -1 --------- Run | Yrd Mat Mat Sto Mat Gar Mat Fac Was Fac Low Low Zio Pro Fac Ext Cet Arc Hub Fac Upp Upp Zhi Pro Fac Upp Upp War Pro Res Qua Res Acc Total 27213 | 112 655 1097 908 1035 302 850 92 413 2078 349 539 1247 444 441 1968 477 767 571 1604 315 409 221 448 2587 412 759 1077 897 706 1723 650 1060 Wait 3628 | . 23 193 171 144 15 118 3 22 329 . 36 12 16 2 343 45 425 40 322 2 18 . 62 528 42 44 27 32 21 474 28 91 Move 20788 | 90 563 714 608 710 268 602 74 365 1572 340 477 1219 421 391 1346 361 290 496 1134 305 375 188 347 1765 364 700 938 790 629 1014 548 784 Hop . | . . . . . . . . . . . . . . . . . . . . . . . . . . . . . . . . . Pick Up 223 | 2 7 18 12 21 . 8 2 7 15 . . 3 . 4 . 9 5 3 16 1 . 4 1 19 1 5 10 8 7 14 4 17 Fast Attach 234 | 7 1 14 11 10 . 8 . 2 7 1 . 5 . 7 10 12 4 1 10 . 2 11 1 22 . 1 11 7 12 28 10 19 Attach 107 | . 1 2 1 8 . 3 2 . 1 . 1 . . 2 4 3 3 . 9 . . 1 2 8 1 1 11 . 2 16 11 14 Detach 76 | . . 8 3 10 . 1 . . 3 . . . . . 5 . 2 . 3 . . 1 1 4 . 2 3 2 5 13 7 3 Swap 315 | . 3 20 19 20 3 10 5 . 26 4 7 1 . 8 21 6 4 1 13 2 3 . 6 70 2 1 23 11 2 8 2 14 Drop 386 | 1 4 30 28 35 . 18 1 9 22 . . 7 . 9 12 29 8 4 15 . 2 13 3 27 1 5 17 13 19 26 6 22 Fire 1224 | 12 53 96 54 75 14 81 5 6 90 4 18 . 6 15 51 12 26 25 81 5 9 . 25 140 1 . 24 34 9 128 34 91 Melee 14 | . . . . . . . . . 11 . . . . 3 . . . . . . . . . . . . . . . . . . Ram . | . . . . . . . . . . . . . . . . . . . . . . . . . . . . . . . . . Kick 3 | . . . . . . . . . . . . . . . . . . . . . . . . . . . . . . . . 3 Crush 17 | . . 2 1 2 . 1 . . 2 . . . . . . . . 1 1 . . . . 4 . . . . . 2 . 1 Escape Stasis 6 | . . . . . 2 . . . . . . . . . 3 . . . . . . . . . . . . . . . . 1 Rewire 192 | . . . . . . . . 2 . . . . 1 . 173 . . . . . . 3 . . . . 13 . . . . . Trap . | . . . . . . . . . . . . . . . . . . . . . . . . . . . . . . . . . Miscellaneous . | . . . . . . . . . . . . . . . . . . . . . . . . . . . . . . . . . Route ------- -11/Scrapyard -10/Materials (discovered 5 exits: *Mat x3 / [*Min x2]) -9/Materials (discovered 6 exits: *Mat x2 / *Min x2 / *Sto x2) -9/Storage -8/Materials (discovered 3 exits: *Fac x2 / Gar) -8/Garrison (discovered 3 exits: *Mat x3) -8/Materials (discovered 2 exits: *Fac x2) -7/Factory -7/Waste -7/Factory (discovered 2 exits: *Low x2) -7/Lower Caves -7/Lower Caves (discovered 2 exits: *Fac / [*Zio]) -7/Zion -6/Proximity Caves -6/Factory (discovered 3 exits: *Fac x2 / *Ext) -6/Extension (discovered 3 exits: *Fac x2 / *Cet) -6/Cetus (discovered 2 exits: *Fac / *Arc) -6/Archives (discovered 3 exits: *Fac / *Hub x2) -6/Hub_04(d) (discovered 2 exits: *Fac x2) -5/Factory (discovered 2 exits: *Upp x2) -5/Upper Caves -5/Upper Caves -5/Zhirov -4/Proximity Caves -4/Factory (discovered 5 exits: *Res x2 / *Upp x2 / *Arm) -4/Upper Caves -4/Upper Caves (discovered 2 exits: *Res / *War) -4/Warlord -3/Proximity Caves -3/Research (discovered 3 exits: *Res / *Qua x2) -3/Quarantine -2/Research -1/Access History --------- Turn | Location | Event 2 | -11/Scrapyard | Met Revision 17 24 | -11/Scrapyard | Discovered new exit (range 14) 191 | -11/Scrapyard | Entered Materials 309 | -10/Materials | Build established: Mutant 484 | -10/Materials | Discovered new exit (range 15) 592 | -10/Materials | Discovered new exit (range 7) 622 | -10/Materials | Core integrity fell below 50% 676 | -10/Materials | Discovered new exit (range 8) 683 | -10/Materials | Discovered new exit (range 13) 751 | -10/Materials | Discovered new exit (range 16) 829 | -10/Materials | Central database locked down 890 | -10/Materials | Core integrity fell below 20% 1037 | -10/Materials | Entered another Materials area 1037 | -9/Materials | Accompanied by 1 ally 1037 | -9/Materials | Evolved 2 slots: Utility x1, Weapon x1 1037 | -9/Materials | Discovered new exit (range 7) 1191 | -9/Materials | Discovered new exit (range 16) 1372 | -9/Materials | Build established: Scavenger-Skirmisher 1544 | -9/Materials | Discovered new exit (range 14) 2081 | -9/Materials | Discovered new exit (range 9) 2191 | -9/Materials | Repaired Hvy. Assault Rifle 2224 | -9/Materials | Repaired Hvy. Assault Rifle 2527 | -9/Materials | Build established: Scavenger-Gunner 2661 | -9/Materials | Discovered new exit (range 7) 2753 | -9/Materials | Identified exit to Mines 2753 | -9/Materials | Identified exit to Storage 2813 | -9/Materials | Discovered new exit (range 15) 3014 | -9/Materials | Entered Storage 3038 | -9/Storage | Met 01-MTF 3467 | -9/Storage | Build established: Gunner 3891 | -9/Storage | Core integrity fell below 50% 4606 | -9/Storage | Discovered new exit (range 16) 4730 | -9/Storage | Repaired Imp. Terrain Scanner 4782 | -9/Storage | Repaired Imp. Assault Rifle 4869 | -9/Storage | Entered Materials 4869 | -8/Materials | Evolved 2 slots: Propulsion x1, Weapon x1 4967 | -8/Materials | Repaired Imp. Assault Rifle 5215 | -8/Materials | Build established: Tank 5841 | -8/Materials | Build established: Gunner 6383 | -8/Materials | Discovered new exit (range 5) 6521 | -8/Materials | Discovered new exit (range 15) 6593 | -8/Materials | Garrison activated, responded to threat 6683 | -8/Materials | Identified exit to Garrison 6795 | -8/Materials | Entered Garrison 6923 | -8/Garrison | Triggered checkpoint 7210 | -8/Garrison | Triggered checkpoint 7372 | -8/Garrison | Discovered new exit (range 13) 7388 | -8/Garrison | Discovered new exit (range 103) 7388 | -8/Garrison | Discovered new exit (range 56) 7388 | -8/Garrison | Discovered new exit (range 13) 7492 | -8/Garrison | Entered Materials 7633 | -8/Materials | Repaired Imp. Assault Rifle 8075 | -8/Materials | Discovered new exit (range 3) 8333 | -8/Materials | Build established: Tank 8364 | -8/Materials | Discovered new exit (range 15) 8762 | -8/Materials | Core integrity fell below 50% 9239 | -8/Materials | Entered Factory 9239 | -7/Factory | Evolved 2 slots: Propulsion x1, Utility x1 9379 | -7/Factory | Sucked down chute 9379 | -7/Factory | Entered Waste 9380 | -7/Waste | Joined by Warlord forces that had cleared the area 9609 | -7/Waste | Build established: Gunner 9754 | -7/Waste | Discovered new exit (range 12) 9985 | -7/Waste | Build established: Tank 10004 | -7/Waste | Entered Factory 10004 | -7/Factory | Accompanied by 20 allies 10298 | -7/Factory | Noticed a derelict Sapper rigging charges 10383 | -7/Factory | Build established: Scavenger-Tank 10550 | -7/Factory | Lost 11 allies 10704 | -7/Factory | Lost 9 allies 11011 | -7/Factory | Discovered new exit (range 7) 11159 | -7/Factory | Build established: Tank 11642 | -7/Factory | Garrison activated, responded to threat 11744 | -7/Factory | Repaired Broken Hvy. Treads 12551 | -7/Factory | Identified exit to Lower Caves 12804 | -7/Factory | First assault squad dispatched 13178 | -7/Factory | Entered Lower Caves 13270 | -7/Lower Caves | Learned Factory emergency access door positions 13354 | -7/Lower Caves | Learned location of Zion (-7) 13577 | -7/Lower Caves | Spotted B-75 Beast 13717 | -7/Lower Caves | Discovered new exit (range 15) 13748 | -7/Lower Caves | Entered another Lower Caves area 13758 | -7/Lower Caves | Discovered new exit (range 9) 14123 | -7/Lower Caves | Encountered a Warlord checkpoint 14195 | -7/Lower Caves | Attracted the attention of an 0b10 checkpoint 14585 | -7/Lower Caves | Discovered new exit (range 13) 14608 | -7/Lower Caves | Entered Zion 14685 | -7/Zion | Visited the Megawrench Repair Shop 14695 | -7/Zion | Megawrench repaired 12 parts 14706 | -7/Zion | Discovered new exit (range 11) 14889 | -7/Zion | System corruption cleaned by Quarantine Array 15169 | -7/Zion | Learned Factory emergency access door positions 15440 | -7/Zion | Found Prototype Energy Gun 15440 | -7/Zion | Identified Storm Laser 15871 | -7/Zion | Gained Derelict followers 16226 | -7/Zion | Met Imprinter 16622 | -7/Zion | Entered Proximity Caves 16622 | -6/Proximity Caves | Accompanied by 3 allies 17169 | -6/Proximity Caves | Discovered new exit (range 9) 17179 | -6/Proximity Caves | Learned location of 1 exit from Proximity Caves 17337 | -6/Proximity Caves | Attracted the attention of an 0b10 checkpoint 17337 | -6/Proximity Caves | Entered Factory 17337 | -6/Factory | Accompanied by 3 allies 17337 | -6/Factory | Evolved 2 slots: Utility x2 17466 | -6/Factory | Discovered new exit (range 15) 17516 | -6/Factory | Identified exit to Factory 17516 | -6/Factory | Discovered exit to Factory (range 16) 17764 | -6/Factory | Discovered new exit (range 12) 17781 | -6/Factory | Identified exit to Extension 18058 | -6/Factory | Entered Extension 18845 | -6/Extension | Spotted B-75 Beast 18885 | -6/Extension | Destroyed B-75 Beast 18946 | -6/Extension | Spotted B-75 Beast 19077 | -6/Extension | Rescued a captive Derelict 19078 | -6/Extension | Rescued a captive Derelict 19204 | -6/Extension | Build established: Scavenger-Tank 19259 | -6/Extension | Rescued a captive Derelict 19260 | -6/Extension | Rescued a captive Derelict 19302 | -6/Extension | Rescued a captive Derelict 19305 | -6/Extension | Rescued a captive Derelict 19353 | -6/Extension | Rescued a captive Derelict 19354 | -6/Extension | Rescued a captive Derelict 19836 | -6/Extension | Build established: Commander-Tank 20014 | -6/Extension | Allies destroyed B-75 Beast 20048 | -6/Extension | Discovered exit to Factory (range 3) 20248 | -6/Extension | Discovered new exit (range 15) 20250 | -6/Extension | Discovered exit to Factory (range 15) 20340 | -6/Extension | Rescued a captive Derelict 20590 | -6/Extension | Build established: Scavenger-Tank 20705 | -6/Extension | Rescued A7 20949 | -6/Extension | Build established: Commander-Tank 21001 | -6/Extension | Entered Cetus 21001 | -6/Cetus | Accompanied by 11 allies (A7) 21006 | -6/Cetus | Acquired a Cetus Manufacturing Module code from A7 21028 | -6/Cetus | Spotted Cetus Guard 21028 | -6/Cetus | Spotted Cetus Guard 21033 | -6/Cetus | Spotted Cetus Guard 21034 | -6/Cetus | Spotted Cetus Guard 21042 | -6/Cetus | Destroyed Cetus Guard 21042 | -6/Cetus | Allies destroyed Cetus Guard 21049 | -6/Cetus | Allies destroyed Cetus Guard 21053 | -6/Cetus | Allies destroyed Cetus Guard 21082 | -6/Cetus | Lost 6 allies 21121 | -6/Cetus | Started Cetus Manufacturing Module 21146 | -6/Cetus | Manufactured an Enhanced Grunt 21171 | -6/Cetus | Manufactured an Enhanced Grunt 21196 | -6/Cetus | Manufactured an Enhanced Grunt 21221 | -6/Cetus | Manufactured an Enhanced Grunt 21246 | -6/Cetus | Manufactured an Enhanced Grunt 21260 | -6/Cetus | Escorted A7 to Cetus Mainframe 21285 | -6/Cetus | Discovered new exit (range 15) 21342 | -6/Cetus | Spotted Cetus Guard 21342 | -6/Cetus | Spotted Cetus Guard 21342 | -6/Cetus | Spotted Cetus Guard 21347 | -6/Cetus | Spotted Cetus Guard 21359 | -6/Cetus | Destroyed Cetus Guard 21363 | -6/Cetus | Allies destroyed Cetus Guard 21365 | -6/Cetus | Allies destroyed Cetus Guard 21371 | -6/Cetus | Found Prototype Device 21371 | -6/Cetus | Identified Exp. Thermal Shield 21378 | -6/Cetus | Discovered exit to Factory (range 16) 21392 | -6/Cetus | Lost 4 allies 21398 | -6/Cetus | Met Revision 17 21669 | -6/Cetus | Build established: Scavenger-Tank 21722 | -6/Cetus | Entered Archives 21722 | -6/Archives | Accompanied by 6 allies (A7) 21727 | -6/Archives | Received a hacking code to weaken MAIN.C 21811 | -6/Archives | Discovered new exit (range 16) 21845 | -6/Archives | Discovered new exit (range 16) 21862 | -6/Archives | Discovered exit to Factory (range 16) 22177 | -6/Archives | Unable to access archive contents 22694 | -6/Archives | Entered Hub_04(d) 22694 | -6/Hub_04(d) | Accompanied by 4 allies 22827 | -6/Hub_04(d) | Discovered exit to Factory (range 12) 22886 | -6/Hub_04(d) | Discovered exit to Factory (range 4) 23558 | -6/Hub_04(d) | Network Hub disabled 23603 | -6/Hub_04(d) | Network Hub disabled 23608 | -6/Hub_04(d) | Entered Factory 23608 | -5/Factory | Evolved 2 slots: Power x1, Utility x1 23609 | -5/Factory | Identified exit to Upper Caves 23734 | -5/Factory | Destroyed 7 combat bots 24306 | -5/Factory | Spotted B-75 Beast 24323 | -5/Factory | Destroyed B-75 Beast 24693 | -5/Factory | Fabricated Imp. Force Field? 24874 | -5/Factory | Garrison activated, responded to threat 25625 | -5/Factory | Repaired Broken Adv. KE Penetrator 25694 | -5/Factory | Repaired Broken Centrium Heavy Treads 25708 | -5/Factory | First assault squad dispatched 25749 | -5/Factory | Repaired Centrium Heavy Treads 26087 | -5/Factory | Entered Upper Caves 26260 | -5/Upper Caves | Build established: Scavenger-Skirmisher 26278 | -5/Upper Caves | Encountered a Warlord checkpoint 26509 | -5/Upper Caves | Discovered new exit (range 12) 26538 | -5/Upper Caves | Learned Factory garrison access intel 26599 | -5/Upper Caves | Entered another Upper Caves area 26728 | -5/Upper Caves | Build established: Scavenger-Tank 26943 | -5/Upper Caves | Attracted the attention of an 0b10 checkpoint 27186 | -5/Upper Caves | Discovered new exit (range 10) 27252 | -5/Upper Caves | Entered Zhirov 27252 | -5/Zhirov | Discovered new exit (range 3) 27283 | -5/Zhirov | Met Zhirov 27314 | -5/Zhirov | Learned location of Quarantine (-3) 27314 | -5/Zhirov | Learned location of Testing (-2) 27314 | -5/Zhirov | Learned location of Command (-1) 27341 | -5/Zhirov | Zhirov requested help retrieving the SGEMP Prototype 27373 | -5/Zhirov | Found Alien Artifact 27373 | -5/Zhirov | Identified Integrated Reactor 27373 | -5/Zhirov | Installed Integrated Reactor, increased core energy generation (+10) 27485 | -5/Zhirov | Found Alien Artifact 27564 | -5/Zhirov | Build established: Scavenger-Mutant 27585 | -5/Zhirov | Entered Proximity Caves 27586 | -4/Proximity Caves | Identified exit to Factory 27669 | -4/Proximity Caves | Spotter reported a threat 27734 | -4/Proximity Caves | Spotter reported a threat 27763 | -4/Proximity Caves | Spotter reported a threat 27862 | -4/Proximity Caves | Attacked by a faux Warlord 28133 | -4/Proximity Caves | Build established: Scavenger-Tank 28269 | -4/Proximity Caves | Attracted the attention of an 0b10 checkpoint 28277 | -4/Proximity Caves | Entered Factory 28277 | -4/Factory | Evolved 2 slots: Utility x2 28278 | -4/Factory | Loaded intel: 4 garrison access locations 28687 | -4/Factory | Spotted B-86 Titan 28730 | -4/Factory | Discovered new exit (range 9) 29081 | -4/Factory | Discovered new exit (range 15) 29208 | -4/Factory | Destroyed 13 combat bots 29810 | -4/Factory | Identified exit to Upper Caves 29810 | -4/Factory | Identified exit to Armory 30098 | -4/Factory | Build established: Scavenger-Skirmisher 30349 | -4/Factory | Discovered new exit (range 5) 30354 | -4/Factory | Identified exit to Research 30984 | -4/Factory | Build established: Hacker-Tank 31044 | -4/Factory | Repaired Broken Adv. KE Penetrator 31277 | -4/Factory | First assault squad dispatched 31354 | -4/Factory | Build established: Hacker-Gunner 31528 | -4/Factory | Repaired Adv. Sensor Array 31579 | -4/Factory | System corruption reached 10% 31747 | -4/Factory | Fabricated Hvy. Shield Leg? 31847 | -4/Factory | Fabricated Hvy. Shield Leg? 32189 | -4/Factory | High security lockdown imminent 32210 | -4/Factory | Destroyed 9 combat bots 32251 | -4/Factory | Entered Upper Caves 32651 | -4/Upper Caves | Entered an active Warlord outpost 32673 | -4/Upper Caves | Learned Factory terminal intel 32673 | -4/Upper Caves | Learned Research terminal intel 32677 | -4/Upper Caves | Build established: Scavenger-Tank 32875 | -4/Upper Caves | Discovered new exit (range 5) 32882 | -4/Upper Caves | Identified exit to Upper Caves 32885 | -4/Upper Caves | Entered another Upper Caves area 33038 | -4/Upper Caves | Discovered exit to Research (range 11) 34044 | -4/Upper Caves | Discovered new exit (range 12) 34060 | -4/Upper Caves | Identified exit to Warlord 34062 | -4/Upper Caves | Entered Warlord 34133 | -4/Warlord | System corruption cleaned by Quarantine Array 34791 | -4/Warlord | Visited the Vortex Lab 34803 | -4/Warlord | Warlord's base attacked by MAIN.C 34808 | -4/Warlord | Found Prototype Launcher 34808 | -4/Warlord | Identified Vortex Catalyst Activator 34812 | -4/Warlord | Found Prototype Energy Gun 34812 | -4/Warlord | Identified Vortex Rail 34817 | -4/Warlord | Found Vortex Rail 34970 | -4/Warlord | Met Warlord 35153 | -4/Warlord | Warlord forces counterattacked 35222 | -4/Warlord | Spotted Striker 35228 | -4/Warlord | Spotted Striker 35229 | -4/Warlord | Spotted Striker 35255 | -4/Warlord | P-70 Sage assimilated allied 35-IZ4(Y) 35259 | -4/Warlord | Destroyed Striker 35260 | -4/Warlord | P-70 Sage assimilated allied N1-LVM(g) 35260 | -4/Warlord | P-80 Master assimilated allied YN-FG0(Y) 35262 | -4/Warlord | Spotted Executioner 35266 | -4/Warlord | P-70 Sage assimilated allied E3-P50(Y) 35298 | -4/Warlord | Lost 12 allies 35299 | -4/Warlord | Destroyed 7 combat bots 35377 | -4/Warlord | Lost 7 allies 35468 | -4/Warlord | Lost 3 allies 35478 | -4/Warlord | Warlord base infiltrated, sounded retreat 35608 | -4/Warlord | Spotted Executioner 35610 | -4/Warlord | Discovered new exit (range 15) 35612 | -4/Warlord | Spotted Striker 35633 | -4/Warlord | Identified Transdimensional Reconstructor 35633 | -4/Warlord | Warped through subspace 35657 | -4/Warlord | Found Prototype Ballistic Cannon 35662 | -4/Warlord | Lost 3 parts (3u) 35753 | -4/Warlord | Lost 15 allies 35764 | -4/Warlord | Identified exit to Proximity Caves 35771 | -4/Warlord | Entered Proximity Caves 35812 | -3/Proximity Caves | Found Alien Artifact 35812 | -3/Proximity Caves | Identified Dimensional Node Initializer 35812 | -3/Proximity Caves | Initialized slip node 35934 | -3/Proximity Caves | Attracted the attention of an 0b10 checkpoint 36003 | -3/Proximity Caves | Spotted B-86 Titan 37155 | -3/Proximity Caves | Build established: Scavenger-Skirmisher 37200 | -3/Proximity Caves | Discovered exit to Research (range 6) 37234 | -3/Proximity Caves | Entered Research 37234 | -3/Research | Evolved 2 slots: Power x1, Utility x1 37235 | -3/Research | Loaded intel: 23 terminal locations 37434 | -3/Research | Revision forces began assault on 0b10 37573 | -3/Research | Met up with Revision 17++ 37715 | -3/Research | Identified exit to Quarantine 37722 | -3/Research | Discovered new exit (range 19) 37864 | -3/Research | Identified exit to Research 37934 | -3/Research | Research terminal network offline 38413 | -3/Research | Entered Quarantine 38462 | -3/Quarantine | Found Alien Artifact 38462 | -3/Quarantine | Identified Phase Redirector 38623 | -3/Quarantine | Found Alien Artifact 38623 | -3/Quarantine | Identified Terrabomb 38623 | -3/Quarantine | Used Terrabomb 38623 | -3/Quarantine | Spotted Alpha 7 38761 | -3/Quarantine | Build established: Scavenger-Tank 39072 | -3/Quarantine | Scanned by Researcher 39133 | -3/Quarantine | Destroyed 7 combat bots 39389 | -3/Quarantine | Found Alien Artifact 39389 | -3/Quarantine | Identified Core Reset Matrix 39389 | -3/Quarantine | Used Core Reset Matrix 39393 | -3/Quarantine | Detected hypermatrix surge 39393 | -3/Quarantine | Sensed 13 artifacts in vicinity 39432 | -3/Quarantine | Build established: Scavenger-Skirmisher 39636 | -3/Quarantine | Met incapacitated Sigix Warrior 39636 | -3/Quarantine | Lockdown squad dispatched 39642 | -3/Quarantine | Acquired the access code to the Sigix quarantine chamber 39758 | -3/Quarantine | Spotted Lightning 39760 | -3/Quarantine | Spotted Lightning 39766 | -3/Quarantine | Spotted Lightning 39793 | -3/Quarantine | System corruption reached 10% 39819 | -3/Quarantine | Destroyed Lightning 39830 | -3/Quarantine | Destroyed Lightning 39834 | -3/Quarantine | Lost 4 parts (1p1n1u1w) 39855 | -3/Quarantine | Destroyed Lightning 40028 | -3/Quarantine | Found Phase Armor 40136 | -3/Quarantine | Repaired Hyb. Antimatter Reactor 40193 | -3/Quarantine | Repaired Adv. Cooling System 40221 | -3/Quarantine | Repaired Structural Scanner 40290 | -3/Quarantine | Repaired Imp. Heavy Siege Treads 40464 | -3/Quarantine | Unlocked Sigix quarantine chamber 40473 | -3/Quarantine | Found Sigix Containment Pod 41089 | -3/Quarantine | Destroyed 7 combat bots 41159 | -3/Quarantine | Discovered exit to Research (range 16) 41178 | -3/Quarantine | Core integrity fell below 50% 41195 | -3/Quarantine | Lost 4 parts (1p3w) 41197 | -3/Quarantine | Entered Research 41197 | -2/Research | Warlord forces began assault on 0b10 41197 | -2/Research | Evolved 2 slots: Utility x2 41307 | -2/Research | Research machine network offline 41321 | -2/Research | Found Unknown Protection 41510 | -2/Research | Build established: Alien-Skirmisher 41515 | -2/Research | Borebot progress halted 41800 | -2/Research | Borebot progress halted 41866 | -2/Research | Build established: Scavenger-Skirmisher 41946 | -2/Research | Borebot progress halted 42094 | -2/Research | Identified Hvy. Reflective Plating 42127 | -2/Research | Found Prototype Processor 42127 | -2/Research | Identified Exp. Core Analyzer 42325 | -2/Research | Lost 3 parts (1n1u1w) 42345 | -2/Research | Discovered new exit (range 16) 42360 | -2/Research | Spotted Striker 42369 | -2/Research | Identified exit to Access 42370 | -2/Research | Entered Access 42370 | -1/Access | Evolved 2 slots: Propulsion x1, Utility x1 42640 | -1/Access | Build established: Scavenger-Gunner 42649 | -1/Access | Lost 3 parts (1p2u) 43664 | -1/Access | Crushed by falling debris 43757 | -1/Access | Lost 5 parts (3n2u) 43759 | -1/Access | Destroyed 10 combat bots 43870 | -1/Access | First assault squad dispatched 43974 | -1/Access | System corruption reached 10% 43981 | -1/Access | Spotted B-99 Colossus 43983 | -1/Access | Released all parts (8) 43990 | -1/Access | Spotted B-99 Colossus 43995 | -1/Access | Core integrity fell below 50% 44000 | -1/Access | Emitted hypermatrix ping 44002 | -1/Access | Core integrity fell below 20% 44005 | -1/Access | Assembled emerged from beneath the floor 44019 | -1/Access | Destroyed by S-43 Plague with Heavy Machine Gun Last Messages --------------- 44001_ Slug penetrates Sealed Heavy Doors. 44001_ Penetrated by Slug. 44001_ Slug penetrates Sealed Heavy Doors. 44001_ Penetrated by Slug. 44003_ Slug penetrates Sealed Heavy Doors. 44003_ Penetrated by Slug. 44005_ Slug penetrates B-99 Colossus. 44011_ Slug penetrates Sealed Heavy Doors. 44013_ Penetrated by Slug. 44013_ Slug penetrates Sealed Heavy Doors. 44013_ Penetrated by Slug. 44013_ Slug penetrates Sealed Heavy Doors. 44014_ System corrupted: Heat flow error (+106). 44014_ Acquired 2 matter. 44017_ B-99 Colossus exits siege mode. 44018_ Slug penetrates Sealed Heavy Doors. [Achievement: 40k Club] [Achievement: 50k Club] [Achievement: Punisher] [Achievement: Overachiever] Map ----- +----------------------------------------------------+ | ?????????????????????????????????????????????????? | | ?????????????????????????????????????????????????? | | ?????????????????????????????????????????????????? | | ?????????????????????????????????????????????????? | | ?????????????????????????????????????????????????? | | ?????????????????????????????????????????????????? | | ?????????????????????????????????????????????????? | | ?????????????????????????????????????????????????? | | ?????????????????????????????????????????????????? | | ?????????????????????????????????????????????????? | | ?????????????????????????????????????????????????? | | ?????????????????????????????????????????????????? | | ?????????????????????????????????????????????????? | | ?????????????????????????????????????????????????? | | ?????????????????????????????????????????????????? | | ?????????????????????????????????????????????????? | | ?????????????????????????????????????????????????? | | ?????????????????????????????????????????????????? | | ?????????????????????????????????????????????????? | | ?????????????????????????????????????????????????? | | ?????????????????????????????????????????????????? | | ?????????????????????????????????????????????????? | | ?????????????????????????????????????????????????? | | ?????????????????????????????????????????????????? | | ????????????????????????"""??????????????????????? | | ????????????????????????"@""?????????????????????? | | ????????????????????????""%""????????????????????? | | ?????????????????????#"""""s""""#????????????????? | | ???????????? ????????#% #????????????????? | | ?????????# ????????# %% BB #????????????????? | | ?????????# ???????# % B #????????????????? | | ?????????# ???????# #????????????????? | | ?????????# ???????# % % #????????????????? | | ?????????# ???????# #????????????????? | | ?????????+ ?????# #????????????????? | | ?????????# ?????##"# ####????????????????? | | ?????????# ?????### % #???????????????????? | | ?????????# ######## #???????????????????? | | ?????????# "" # #???????????????????? | | ?????????# """# #???????????????????? | | ?????????# R"# "#??????????????????? | | ?????????# """# % ##??????????????????? | | ?????????? # ########???????????????????? | | ???????????? ?# #??????????????????????????? | | ??????????####/###* #??????????????????????????? | | ??????????# =][ ! " !???????????????????????? | | ??????????# ]!*!! # ???????????????????? | | ??????????# !][ #? ""????????????????? | | ?########## !! #?? Y"????????????????? | | ?# * # #????" ""????????????????? | +----------------------------------------------------+ Best States ------------- Heat Dissipation 155 Energy Generation 69 Energy Capacity 1795 Matter Stores 550 Matter Capacity 550 Sight Range 22 Robot Scan Range 16 Terrain Scan Range 16 Terrain Scan Density 110 ECM Strength 1 Jamming Range 14 Corruption Containment 12 Armor Coverage 1200 Resistance: TH 25 Weapon Cycling 25 Evasion (%) 67 Targeting Accuracy 14 Target Analysis 6 Core Analysis 8 Recoil Reduction 5 Particle Charging 30 Kinecelleration 30 Salvage Targeting 4 Offensive Hacking 26 Item Schematics ----------------- Adv. Thermal Defense Suite | -3/Quarantine | Archive Multireflex Exoskeleton | -3/Quarantine | Archive Helical Railgun | -3/Quarantine | Archive Cld. Impulse Thruster | -3/Quarantine | Archive Adv. Matter Compressor | -3/Quarantine | Archive Exp. Shield Generator | -3/Quarantine | Archive Diametric Drive | -3/Quarantine | Archive Robot Schematics ------------------ C-55 Analyst | -3/Quarantine | Archive Fabricated ------------ Imp. Force Field | x2 | -5/Factory Hvy. Shield Leg | x1 | -4/Factory Hvy. Shield Leg | x1 | -4/Factory Repaired ---------- Hvy. Assault Rifle | 8% | -9/Materials Hvy. Assault Rifle | 9% | -9/Materials Imp. Terrain Scanner | 9% | -9/Storage Imp. Assault Rifle | 80% | -9/Storage Imp. Assault Rifle | 80% | -8/Materials Imp. Assault Rifle | 44% | -8/Materials Hvy. Treads | 36% | -7/Factory | Broken Adv. KE Penetrator | 5% | -5/Factory | Broken Centrium Heavy Treads | 16% | -5/Factory | Broken Centrium Heavy Treads | 43% | -5/Factory Adv. KE Penetrator | 15% | -4/Factory | Broken Adv. Sensor Array | 25% | -4/Factory Hyb. Antimatter Reactor | 17% | -3/Quarantine Adv. Cooling System | 21% | -3/Quarantine Structural Scanner | 15% | -3/Quarantine Imp. Heavy Siege Treads | 74% | -3/Quarantine Alien Tech Used ----------------- Integrated Reactor Transdimensional Reconstructor Dimensional Node Initializer Phase Redirector Terrabomb Core Reset Matrix Phase Armor Achievements -------------- 40k Club 50k Club False Reunion Overachiever Punisher Challenges ------------ None Game ------ Seed LatentScrapoidStabilizer Manual? 0 Play Time 07:26:03 Cumulative 130.9 hours Start 2025.08.13 @ 17:20:24 End 2025.08.14 @ 12:07:12 Sessions 3 Manual Loads 0 Difficulty Rogue Special Mode None Game No. 115 Rogue 115 Adventurer 0 Explorer 0 Win Type - Total 4 Types 4/0/0/0/0/0/0/0/0/0 Lore% 32 Gallery% 54 Achievement% 51 Wizard Run 0 Options --------- Layout 2 ASCII 0 Keyboard 1 Movement Arrows Keybinds 0 Fullscreen 1 Font 32/Tamsyn Map View 50x44 Zoom Use 0% Tactical HUD 1 Map Filters NONE Filters NONE Steam 1 RUN: c85962c7-b5a5-4010-9794-15668ed4e2fc